{"text_format":"1","workbook":"xlsx","n_sheets":3,"sheets":["Raumverzeichnis","Fensterverzeichnis","Fehler-Datensätze"],"not_rendered":{"charts":0,"images":0,"macros":1,"external_links":0,"defined_names":8,"comments":2,"pivot_tables":0},"unopened":[],"bounds":{"document_bytes":16777216,"sheet_cells":100000,"rows_first":2000,"rows_last":500,"rows_between":2000,"halvings":0,"cell_chars":16384,"cell_head_chars":4096},"cells_cut":0,"cells_raw":0,"read":"whole","date_system":"1900"}

{"sheet":"Raumverzeichnis","index":0,"n_rows":83,"n_cols":85,"rows_kept":83,"cut":false,"hidden":false,"merged":[[2,16,2,18],[3,0,3,3],[3,4,3,6],[3,7,3,18],[0,0,0,18],[1,0,1,3],[1,4,1,6],[1,7,1,13],[1,14,1,15],[1,16,1,18],[9,0,9,3],[2,0,2,3],[2,4,2,6],[2,7,2,13],[2,14,2,15],[11,0,11,6],[11,7,11,14],[11,15,11,18],[10,0,10,3],[4,5,4,14],[5,5,5,14],[6,5,6,14],[7,5,7,14],[8,5,8,14],[9,5,9,14],[10,5,10,14],[4,0,4,3],[5,0,5,3],[6,0,6,3],[7,0,7,3],[8,0,8,3]]}
["Raumverzeichnis",null,null,null,null,null,null,null,null,null,null,null,null,null,null,null,null,null,null,null,null,null,null,null,null,null,null,null,null,null,null,null,null,null,null,"643"]
["BwDLZ",null,null,null,"Ingolstadt",null,null,"Stand",null,null,null,null,null,null,"2026-01-13",null,"erstellt mit Version V_05 09/2012",null,null,null,null,null,null,null,null,null,null,null,null,null,null,null,null,null,null,null,null,"2026-01-13","Keine Datenübernahme möglich"]
["OM/Außenstelle",null,null,null,"Pionierübungsplatz L/w",null,null,"Objektmanager/~in",null,null,null,null,null,null,"Achatz",null,"Datenbasis, Stand vom: 08.01.2026"]
["AbrBer / Lg-Nummer / Lg-Bezeichnung / (Anz. Häuser)",null,null,null,"1         3615  (14)"]
["Anzahl Räume gesamt",null,null,null,{"$f":"SUM($P5:$S5)","v":68},"Anzahl Räume je Reinigungshäufigkeit",null,null,null,null,null,null,null,null,null,{"$f":"IF(SUM(P15:P82)=0,\"\",COUNTIF(P15:P82,\">0\"))","v":16},3,15,34]
["m² einfache Reinigungsfläche gesamt",null,null,null,1361.98,"m² einfache Bodenfläche je Reinigungshäufigkeit",null,null,null,null,null,null,null,null,null,{"$f":"IF(SUM(P15:P82)=0,\"\",SUM(P15:P82))","v":156.99},8.58,429.22,767.19,null,null,null,null,null,null,null,null,null,null,null,null,null,null,null,null,null,null,null,{"$f":"IF(SUM(AM15:AM82)=0,\"\",AVERAGE(AM15:AM82))","v":""}]
["m² monatliche Reinigungsfläche gesamt",null,null,null,10470.57,"m² monatliche Reinigungsfläche je Reinigungshäufigkeit",null,null,null,null,null,null,null,null,null,{"$f":"IF(OR(P6=\"\",P11=\"\"),\"\",P6*P11/12)","v":3289.33},107.86,3739.94,3333.44]
["m² jährliche Reinigungsfläche gesamt",null,null,null,125646.84,"m² jährliche Reinigungsfläche je Reinigungshäufigkeit",null,null,null,null,null,null,null,null,null,{"$f":"IF(P7=\"\",\"\",P7*12)","v":39471.96},1294.32,44879.28,40001.279999999999]
["Anzahl Räume nach Filter",null,null,null,68,"Teilergebnisse (Summenbildung mit Autofilter)",null,null,null,null,null,null,null,null,null,{"$f":"IF(P11=\"\",\"\",SUBTOTAL(2,P15:P82))","v":16},3,15,34]
["m² einfache Bodenfläche nach Filter",null,null,null,1361.98,"Teilergebnis, m² Fußbodenfläche, gesamt",null,null,null,null,null,null,null,null,null,{"$f":"IF(P11=\"\",\"\",SUBTOTAL(9,P15:P82))","v":156.99},8.58,429.22,767.19,null,null,null,null,null,null,null,null,null,null,null,null,null,null,null,null,null,null,"AnzReinH","AnzRH_SonderR",null,"AnzZeilen","AnzAbrBer","Anzahl Lg","AnzLose","Typ der Quelldatei"]
["Anzahl kalkulatorische Reinigungstage nach Filter",null,null,null,558.99,"kalkulatorische Reinigungstage, jährlich",null,null,null,null,null,null,null,null,null,{"$f":"IF(RIGHT(P13,3)=\"xwö\",IF(VALUE(LEFT(P13,LEN(P13)-3))>7,VALUE(LEFT(P13,LEN(P13)-3))*52.14283,CHOOSE(VALUE(LEFT(P13,LEN(P13)-3)),52.14283,104.56,150.86,201.14,251.43,302.72,365)),IF(RIGHT(P13,4)=\"xmtl\",VALUE(LEFT(P13,1))*12,IF(RIGHT(P13,3)=\"xjl\",VALUE(LEFT(P13,1)/12),\"\")))","v":251.43},150.86000000000001,104.56,52.14,null,null,null,null,null,null,null,null,null,null,null,null,null,null,null,null,null,null,3,0,null,68,1,1,0,"BewLgZ"]
[null,null,null,null,null,null,null,"Reinigungszeit",null,null,null,null,null,null,null,"Fußbodenfläche in m² nach Reinigungshäufigkeit",null,null,null,null,null,null,null,null,null,null,null,null,null,null,null,null,null,null,null,null,null,null,"Mo","Di","Mi","Do","Fr","Sa","So"]
["AbrBer","Gebäude","Geschoss","Raum-\nnummer","Raumbezeichnung","Nutzungsart Bezeichnung\nDIN 277","Fußbodenart Bezeichnung\nDIN 277","Mo","Di","Mi","Do","Fr","Sa","So","Tageszeit oder\nTermin n.wö.Rein","5xwö","3xwö","2xwö","1xwö",null,null,null,null,null,null,null,null,null,null,null,null,null,null,null,null,null,"Soll/Ist Diff.:\n(nur wö. RH)",{"$f":"SUM(AM13:BC13)","v":0},{"$f":"IF(RIGHT(P$13,3)=\"xwö\",SUMIF($AM$15:$AM$82,P$13,$AN$15:$AO$82)-SUMIF($AM$15:$AM$82,P$13,$AO$15:$AO$82),0)","v":0},0,0,0,0,0,0,0,0,0,0,0,0,0,0,0,0]
[1,{"$f":"A14+1","v":2},3,4,5,6,7,8,9,10,11,12,13,14,15,16,17,18,19,null,null,null,null,null,null,null,null,null,null,null,null,null,null,null,null,"Vergleichs- und Sortierstring","LGNR/WE-NR","FBFl","Reinigungshäufigkeiten","Erste Stelle von Spalte AM","Summe ReinTage","AbrBer","LgNr","Liegenschaftsbezeichnung","Anz. Räume mit fehlender ReinH","Anz. Räume ohne Raumbezeichnung","Anz. Räume mit fehlender FußBodenBez.","Anz. Räume mit unbekannter ReinH","Anz. Räume mit falscher ReinH","Anz. Räume mit Fußbodenfläche = 0","Anz. Räume ohne Reinigung durch","Anz. Räume mit ungültigen Fensterdaten","Anz. Räume mit ReinH zum Raum Falsch",null,null,null,null,null,null,"AbrBer","Haus","Fußbodenfläche","Mo","Di","Mi","Do","Fr","Sa","So","Leistungsansatz","Mo","Di","Mi","Do","Fr","Sa","So",null,"Mo","Di","Mi","Do","Fr","Sa","So"]
["1","1","EG","1A","","2.0 Büroarbeit","Z.FB0220 Hartbelag",null,null,1,null,null,null,null,{"$f":"IF($AN15=0,IF(AND($S15<> 0, LEFT($S$13, 3)=\"nur\"), \"Sonderreinigungfläche\",\"Reinigungstag fehlt\"),\"\")","v":""},null,null,null,12,null,null,null,null,null,null,null,null,null,null,null,null,null,null,null,null,"1         3615       0001-  222EG   000100A 2.0","3615",12,"1xwö",1,{"$f":"SUM(H15:N15)","v":1},"1","3615",null,0,0,0,0,null,0,0,0,3,null,null,null,null,null,null,{"$f":"A15","v":"1"},{"$f":"B15","v":"1"},{"$f":"SUM($P15:$S15)","v":12},{"$f":"$BJ15*H15","v":0},{"$f":"$BJ15*I15","v":0},{"$f":"$BJ15*J15","v":12},{"$f":"$BJ15*K15","v":0},{"$f":"$BJ15*L15","v":0},{"$f":"$BJ15*M15","v":0},{"$f":"$BJ15*N15","v":0},null,{"$f":"H15","v":0},{"$f":"I15","v":0},{"$f":"J15","v":1},{"$f":"K15","v":0},{"$f":"L15","v":0},{"$f":"M15","v":0},{"$f":"N15","v":0},null,{"$f":"IF($BR15=0,0,ROUNDUP(BK15/$BR15,3))","v":0},{"$f":"IF($BR15=0,0,ROUNDUP(BL15/$BR15,3))","v":0},{"$f":"IF($BR15=0,0,ROUNDUP(BM15/$BR15,3))","v":0},{"$f":"IF($BR15=0,0,ROUNDUP(BN15/$BR15,3))","v":0},{"$f":"IF($BR15=0,0,ROUNDUP(BO15/$BR15,3))","v":0},{"$f":"IF($BR15=0,0,ROUNDUP(BP15/$BR15,3))","v":0},{"$f":"IF($BR15=0,0,ROUNDUP(BQ15/$BR15,3))","v":0}]
["1","1","EG","1B","","2.0 Büroarbeit","Z.FB0220 Hartbelag",null,null,1,null,null,null,null,"",null,null,null,12,null,null,null,null,null,null,null,null,null,null,null,null,null,null,null,null,"1         3615       0001-  222EG   000100B 2.0","3615",12,"1xwö",1,1,null,"",null,null,null,null,null,null,null,null,null,null,null,null,null,null,null,null,"1","1",12,0,0,12,0,0,0,0,null,0,0,1,0,0,0,0,null,0,0,0,0,0,0,0]
["1","1","EG","5A","","2.0 Büroarbeit","Z.FB0220 Hartbelag",null,null,1,null,null,null,null,"",null,null,null,12,null,null,null,null,null,null,null,null,null,null,null,null,null,null,null,null,"1         3615       0001-  222EG   000500A 2.0","3615",12,"1xwö",1,1,null,"",null,null,null,null,null,null,null,null,null,null,null,null,null,null,null,null,"1","1",12,0,0,12,0,0,0,0,null,0,0,1,0,0,0,0,null,0,0,0,0,0,0,0]
["1","2","EG","01","","2.0 Büroarbeit","Z.FB0020 Estrich",null,null,1,null,null,null,null,"",null,null,null,7.2,null,null,null,null,null,null,null,null,null,null,null,null,null,null,null,null,"1         3615       0002-  222EG   000100  2.0","3615",7.2,"1xwö",1,1,null,"",null,null,null,null,null,null,null,null,null,null,null,null,null,null,null,null,"1","2",7.2,0,0,7.2,0,0,0,0,null,0,0,1,0,0,0,0,null,0,0,0,0,0,0,0]
["1","2","EG","02","","9.0 Verkehrsfläche","Z.FB0020 Estrich",null,null,1,null,null,null,null,"",null,null,null,3.91,null,null,null,null,null,null,null,null,null,null,null,null,null,null,null,null,"1         3615       0002-  222EG   000200  9.0","3615",3.91,"1xwö",1,1,null,"",null,null,null,null,null,null,null,null,null,null,null,null,null,null,null,null,"1","2",3.91,0,0,3.91,0,0,0,0,null,0,0,1,0,0,0,0,null,0,0,0,0,0,0,0]
["1","2","EG","04","","7.1 Sanitärräume","Z.FB0060 keramische Fliesen/Platten",1,1,1,1,1,null,null,"",1.69,null,null,null,null,null,null,null,null,null,null,null,null,null,null,null,null,null,null,null,"1         3615       0002-  222EG   000400  7.1","3615",1.69,"5xwö",5,5,null,null,null,null,null,null,null,null,null,null,null,null,null,null,null,null,null,null,"1","2",1.69,1.69,1.69,1.69,1.69,1.69,0,0,null,1,1,1,1,1,0,0,null,0,0,0,0,0,0,0]
["1","2","EG","05","","7.1 Sanitärräume","Z.FB0060 keramische Fliesen/Platten",1,1,1,1,1,null,null,"",8.9600000000000009,null,null,null,null,null,null,null,null,null,null,null,null,null,null,null,null,null,null,null,"1         3615       0002-  222EG   000500  7.1","3615",8.9600000000000009,"5xwö",5,5,null,null,null,null,null,null,null,null,null,null,null,null,null,null,null,null,null,null,"1","2",8.9600000000000009,8.9600000000000009,8.9600000000000009,8.9600000000000009,8.9600000000000009,8.9600000000000009,0,0,null,1,1,1,1,1,0,0,null,0,0,0,0,0,0,0]
["1","3","EG","11A","","2.0 Büroarbeit","Z.FB0220 Hartbelag",null,null,1,null,null,null,null,"",null,null,null,15,null,null,null,null,null,null,null,null,null,null,null,null,null,null,null,null,"1         3615       0003-  222EG   001100A 2.0","3615",15,"1xwö",1,1,null,null,null,null,null,null,null,null,null,null,null,null,null,null,null,null,null,null,"1","3",15,0,0,15,0,0,0,0,null,0,0,1,0,0,0,0,null,0,0,0,0,0,0,0]
["1","4","EG","02","","2.0 Büroarbeit","Z.FB0010 Anstrich/Lack",null,null,1,null,null,null,null,"",null,null,null,98.66,null,null,null,null,null,null,null,null,null,null,null,null,null,null,null,null,"1         3615       0004-  222EG   000200  2.0","3615",98.66,"1xwö",1,1,null,null,null,null,null,null,null,null,null,null,null,null,null,null,null,null,null,null,"1","4",98.66,0,0,98.66,0,0,0,0,null,0,0,1,0,0,0,0,null,0,0,0,0,0,0,0]
["1","4","EG","03","","2.0 Büroarbeit","Z.FB0010 Anstrich/Lack",null,null,1,null,null,null,null,"",null,null,null,23.54,null,null,null,null,null,null,null,null,null,null,null,null,null,null,null,null,"1         3615       0004-  222EG   000300  2.0","3615",23.54,"1xwö",1,1,null,null,null,null,null,null,null,null,null,null,null,null,null,null,null,null,null,null,"1","4",23.54,0,0,23.54,0,0,0,0,null,0,0,1,0,0,0,0,null,0,0,0,0,0,0,0]
["1","4","EG","04 a","","2.0 Büroarbeit","Z.FB0010 Anstrich/Lack",null,null,1,null,null,null,null,"",null,null,null,23.51,null,null,null,null,null,null,null,null,null,null,null,null,null,null,null,null,"1         3615       0004-  222EG   000400a 2.0","3615",23.51,"1xwö",1,1,null,null,null,null,null,null,null,null,null,null,null,null,null,null,null,null,null,null,"1","4",23.51,0,0,23.51,0,0,0,0,null,0,0,1,0,0,0,0,null,0,0,0,0,0,0,0]
["1","4","EG","04 b","","2.0 Büroarbeit","Z.FB0010 Anstrich/Lack",null,null,1,null,null,null,null,"",null,null,null,23.57,null,null,null,null,null,null,null,null,null,null,null,null,null,null,null,null,"1         3615       0004-  222EG   000400b 2.0","3615",23.57,"1xwö",1,1,null,null,null,null,null,null,null,null,null,null,null,null,null,null,null,null,null,null,"1","4",23.57,0,0,23.57,0,0,0,0,null,0,0,1,0,0,0,0,null,0,0,0,0,0,0,0]
["1","4","EG","05","","1.0 Wohnen und Aufenthalt","Z.FB0010 Anstrich/Lack",1,null,1,null,null,null,null,"",null,null,35.28,null,null,null,null,null,null,null,null,null,null,null,null,null,null,null,null,null,"1         3615       0004-  222EG   000500  1.0","3615",35.28,"2xwö",2,2,null,null,null,null,null,null,null,null,null,null,null,null,null,null,null,null,null,null,"1","4",35.28,35.28,0,35.28,0,0,0,0,null,1,0,1,0,0,0,0,null,0,0,0,0,0,0,0]
["1","4","EG","06","","7.2 Umkleiden","Z.FB0010 Anstrich/Lack",1,null,1,null,null,null,null,"",null,null,23.54,null,null,null,null,null,null,null,null,null,null,null,null,null,null,null,null,null,"1         3615       0004-  222EG   000600  7.2","3615",23.54,"2xwö",2,2,null,null,null,null,null,null,null,null,null,null,null,null,null,null,null,null,null,null,"1","4",23.54,23.54,0,23.54,0,0,0,0,null,1,0,1,0,0,0,0,null,0,0,0,0,0,0,0]
["1","4","EG","07","","7.1 Sanitärräume","Z.FB0060 keramische Fliesen/Platten",1,1,1,1,1,null,null,"",18.18,null,null,null,null,null,null,null,null,null,null,null,null,null,null,null,null,null,null,null,"1         3615       0004-  222EG   000700  7.1","3615",18.18,"5xwö",5,5,null,null,null,null,null,null,null,null,null,null,null,null,null,null,null,null,null,null,"1","4",18.18,18.18,18.18,18.18,18.18,18.18,0,0,null,1,1,1,1,1,0,0,null,0,0,0,0,0,0,0]
["1","4","EG","08","","7.1 Sanitärräume","Z.FB0060 keramische Fliesen/Platten",1,1,1,1,1,null,null,"",21.23,null,null,null,null,null,null,null,null,null,null,null,null,null,null,null,null,null,null,null,"1         3615       0004-  222EG   000800  7.1","3615",21.23,"5xwö",5,5,null,null,null,null,null,null,null,null,null,null,null,null,null,null,null,null,null,null,"1","4",21.23,21.23,21.23,21.23,21.23,21.23,0,0,null,1,1,1,1,1,0,0,null,0,0,0,0,0,0,0]
["1","4","EG","09","","7.1 Sanitärräume","Z.FB0060 keramische Fliesen/Platten",1,1,1,1,1,null,null,"",7.62,null,null,null,null,null,null,null,null,null,null,null,null,null,null,null,null,null,null,null,"1         3615       0004-  222EG   000900  7.1","3615",7.62,"5xwö",5,5,null,null,null,null,null,null,null,null,null,null,null,null,null,null,null,null,null,null,"1","4",7.62,7.62,7.62,7.62,7.62,7.62,0,0,null,1,1,1,1,1,0,0,null,0,0,0,0,0,0,0]
["1","4","EG","10","","7.1 Sanitärräume","Z.FB0060 keramische Fliesen/Platten",1,1,1,1,1,null,null,"",6.09,null,null,null,null,null,null,null,null,null,null,null,null,null,null,null,null,null,null,null,"1         3615       0004-  222EG   001000  7.1","3615",6.09,"5xwö",5,5,null,null,null,null,null,null,null,null,null,null,null,null,null,null,null,null,null,null,"1","4",6.09,6.09,6.09,6.09,6.09,6.09,0,0,null,1,1,1,1,1,0,0,null,0,0,0,0,0,0,0]
["1","4","EG","14","","2.0 Büroarbeit","Z.FB0010 Anstrich/Lack",null,null,1,null,null,null,null,"",null,null,null,31.96,null,null,null,null,null,null,null,null,null,null,null,null,null,null,null,null,"1         3615       0004-  222EG   001400  2.0","3615",31.96,"1xwö",1,1,null,null,null,null,null,null,null,null,null,null,null,null,null,null,null,null,null,null,"1","4",31.96,0,0,31.96,0,0,0,0,null,0,0,1,0,0,0,0,null,0,0,0,0,0,0,0]
["1","4","EG","15","","2.0 Büroarbeit","Z.FB0010 Anstrich/Lack",null,null,1,null,null,null,null,"",null,null,null,19.63,null,null,null,null,null,null,null,null,null,null,null,null,null,null,null,null,"1         3615       0004-  222EG   001500  2.0","3615",19.63,"1xwö",1,1,null,null,null,null,null,null,null,null,null,null,null,null,null,null,null,null,null,null,"1","4",19.63,0,0,19.63,0,0,0,0,null,0,0,1,0,0,0,0,null,0,0,0,0,0,0,0]
["1","4","EG","16","","7.2 Umkleiden","Z.FB0010 Anstrich/Lack",1,null,1,null,null,null,null,"",null,null,13.75,null,null,null,null,null,null,null,null,null,null,null,null,null,null,null,null,null,"1         3615       0004-  222EG   001600  7.2","3615",13.75,"2xwö",2,2,null,null,null,null,null,null,null,null,null,null,null,null,null,null,null,null,null,null,"1","4",13.75,13.75,0,13.75,0,0,0,0,null,1,0,1,0,0,0,0,null,0,0,0,0,0,0,0]
["1","4","EG","17","","3.8 Küchen","Z.FB0010 Anstrich/Lack",1,null,1,null,null,null,null,"",null,null,23.54,null,null,null,null,null,null,null,null,null,null,null,null,null,null,null,null,null,"1         3615       0004-  222EG   001700  3.8","3615",23.54,"2xwö",2,2,null,null,null,null,null,null,null,null,null,null,null,null,null,null,null,null,null,null,"1","4",23.54,23.54,0,23.54,0,0,0,0,null,1,0,1,0,0,0,0,null,0,0,0,0,0,0,0]
["1","4","EG","18","","2.0 Büroarbeit","Z.FB0010 Anstrich/Lack",null,null,1,null,null,null,null,"",null,null,null,48.61,null,null,null,null,null,null,null,null,null,null,null,null,null,null,null,null,"1         3615       0004-  222EG   001800  2.0","3615",48.61,"1xwö",1,1,null,null,null,null,null,null,null,null,null,null,null,null,null,null,null,null,null,null,"1","4",48.61,0,0,48.61,0,0,0,0,null,0,0,1,0,0,0,0,null,0,0,0,0,0,0,0]
["1","4","EG","19","","2.0 Büroarbeit","Z.FB0010 Anstrich/Lack",null,null,1,null,null,null,null,"",null,null,null,48.55,null,null,null,null,null,null,null,null,null,null,null,null,null,null,null,null,"1         3615       0004-  222EG   001900  2.0","3615",48.55,"1xwö",1,1,null,null,null,null,null,null,null,null,null,null,null,null,null,null,null,null,null,null,"1","4",48.55,0,0,48.55,0,0,0,0,null,0,0,1,0,0,0,0,null,0,0,0,0,0,0,0]
["1","4","EG","20","","2.0 Büroarbeit","Z.FB0010 Anstrich/Lack",null,null,1,null,null,null,null,"",null,null,null,23.54,null,null,null,null,null,null,null,null,null,null,null,null,null,null,null,null,"1         3615       0004-  222EG   002000  2.0","3615",23.54,"1xwö",1,1,null,null,null,null,null,null,null,null,null,null,null,null,null,null,null,null,null,null,"1","4",23.54,0,0,23.54,0,0,0,0,null,0,0,1,0,0,0,0,null,0,0,0,0,0,0,0]
["1","4","EG","21","","2.0 Büroarbeit","Z.FB0010 Anstrich/Lack",null,null,1,null,null,null,null,"",null,null,null,48.58,null,null,null,null,null,null,null,null,null,null,null,null,null,null,null,null,"1         3615       0004-  222EG   002100  2.0","3615",48.58,"1xwö",1,1,null,null,null,null,null,null,null,null,null,null,null,null,null,null,null,null,null,null,"1","4",48.58,0,0,48.58,0,0,0,0,null,0,0,1,0,0,0,0,null,0,0,0,0,0,0,0]
["1","4","EG","22","","9.0 Verkehrsfläche","Z.FB0010 Anstrich/Lack",1,null,1,null,null,null,null,"",null,null,64.12,null,null,null,null,null,null,null,null,null,null,null,null,null,null,null,null,null,"1         3615       0004-  222EG   002200  9.0","3615",64.12,"2xwö",2,2,null,null,null,null,null,null,null,null,null,null,null,null,null,null,null,null,null,null,"1","4",64.12,64.12,0,64.12,0,0,0,0,null,1,0,1,0,0,0,0,null,0,0,0,0,0,0,0]
["1","4","EG","23","","9.0 Verkehrsfläche","Z.FB0010 Anstrich/Lack",1,null,1,null,null,null,null,"",null,null,64.84,null,null,null,null,null,null,null,null,null,null,null,null,null,null,null,null,null,"1         3615       0004-  222EG   002300  9.0","3615",64.84,"2xwö",2,2,null,null,null,null,null,null,null,null,null,null,null,null,null,null,null,null,null,null,"1","4",64.84,64.84,0,64.84,0,0,0,0,null,1,0,1,0,0,0,0,null,0,0,0,0,0,0,0]
["1","4","EG","24","","9.0 Verkehrsfläche","Z.FB0010 Anstrich/Lack",1,null,1,null,null,null,null,"",null,null,7.58,null,null,null,null,null,null,null,null,null,null,null,null,null,null,null,null,null,"1         3615       0004-  222EG   002400  9.0","3615",7.58,"2xwö",2,2,null,null,null,null,null,null,null,null,null,null,null,null,null,null,null,null,null,null,"1","4",7.58,7.58,0,7.58,0,0,0,0,null,1,0,1,0,0,0,0,null,0,0,0,0,0,0,0]
["1","5","EG","6","","3.8 Küchen","Z.FB0030 Beton",null,null,1,null,null,null,null,"",null,null,null,8.9,null,null,null,null,null,null,null,null,null,null,null,null,null,null,null,null,"1         3615       0005-  222EG   000600  3.8","3615",8.9,"1xwö",1,1,null,null,null,null,null,null,null,null,null,null,null,null,null,null,null,null,null,null,"1","5",8.9,0,0,8.9,0,0,0,0,null,0,0,1,0,0,0,0,null,0,0,0,0,0,0,0]
["1","5","EG","7","","7.1 Sanitärräume","Z.FB0060 keramische Fliesen/Platten",1,1,1,1,1,null,null,"",3.7,null,null,null,null,null,null,null,null,null,null,null,null,null,null,null,null,null,null,null,"1         3615       0005-  222EG   000700  7.1","3615",3.7,"5xwö",5,5,null,null,null,null,null,null,null,null,null,null,null,null,null,null,null,null,null,null,"1","5",3.7,3.7,3.7,3.7,3.7,3.7,0,0,null,1,1,1,1,1,0,0,null,0,0,0,0,0,0,0]
["1","5","EG","8","","9.0 Verkehrsfläche","Z.FB0030 Beton",null,null,1,null,null,null,null,"",null,null,null,7.1,null,null,null,null,null,null,null,null,null,null,null,null,null,null,null,null,"1         3615       0005-  222EG   000800  9.0","3615",7.1,"1xwö",1,1,null,null,null,null,null,null,null,null,null,null,null,null,null,null,null,null,null,null,"1","5",7.1,0,0,7.1,0,0,0,0,null,0,0,1,0,0,0,0,null,0,0,0,0,0,0,0]
["1","5","EG","9","","1.0 Wohnen und Aufenthalt","Z.FB0010 Anstrich/Lack",1,null,1,null,null,null,null,{"$f":"IF($AN47=0,IF(AND($S47<> 0, LEFT($S$13, 3)=\"nur\"), \"Sonderreinigungfläche\",\"Reinigungstag fehlt\"),\"\")","v":""},null,null,19.399999999999999,null,null,null,null,null,null,null,null,null,null,null,null,null,null,null,null,null,"1         3615       0005-  222EG   000900  1.0","3615",19.399999999999999,"2xwö",2,{"$f":"SUM(H47:N47)","v":2},null,null,null,null,null,null,null,null,null,null,null,null,null,null,null,null,null,null,{"$f":"A47","v":"1"},{"$f":"B47","v":"5"},{"$f":"SUM($P47:$S47)","v":19.399999999999999},{"$f":"$BJ47*H47","v":19.399999999999999},{"$f":"$BJ47*I47","v":0},{"$f":"$BJ47*J47","v":19.399999999999999},{"$f":"$BJ47*K47","v":0},{"$f":"$BJ47*L47","v":0},{"$f":"$BJ47*M47","v":0},{"$f":"$BJ47*N47","v":0},null,{"$f":"H47","v":1},{"$f":"I47","v":0},{"$f":"J47","v":1},{"$f":"K47","v":0},{"$f":"L47","v":0},{"$f":"M47","v":0},{"$f":"N47","v":0},null,{"$f":"IF($BR47=0,0,ROUNDUP(BK47/$BR47,3))","v":0},{"$f":"IF($BR47=0,0,ROUNDUP(BL47/$BR47,3))","v":0},{"$f":"IF($BR47=0,0,ROUNDUP(BM47/$BR47,3))","v":0},{"$f":"IF($BR47=0,0,ROUNDUP(BN47/$BR47,3))","v":0},{"$f":"IF($BR47=0,0,ROUNDUP(BO47/$BR47,3))","v":0},{"$f":"IF($BR47=0,0,ROUNDUP(BP47/$BR47,3))","v":0},{"$f":"IF($BR47=0,0,ROUNDUP(BQ47/$BR47,3))","v":0}]
["1","7","EG","0.01","","2.0 Büroarbeit","Z.FB0020 Estrich",null,null,1,null,null,null,null,"",null,null,null,11.4,null,null,null,null,null,null,null,null,null,null,null,null,null,null,null,null,"1         3615       0007-  222EG   0000011 2.0","3615",11.4,"1xwö",1,1,null,null,null,null,null,null,null,null,null,null,null,null,null,null,null,null,null,null,"1","7",11.4,0,0,11.4,0,0,0,0,null,0,0,1,0,0,0,0,null,0,0,0,0,0,0,0]
["1","7","EG","0.03","","7.1 Sanitärräume","Z.FB0060 keramische Fliesen/Platten",1,null,1,null,1,null,null,"",null,4.42,null,null,null,null,null,null,null,null,null,null,null,null,null,null,null,null,null,null,"1         3615       0007-  222EG   0000033 7.1","3615",4.42,"3xwö",3,3,null,null,null,null,null,null,null,null,null,null,null,null,null,null,null,null,null,null,"1","7",4.42,4.42,0,4.42,0,4.42,0,0,null,1,0,1,0,1,0,0,null,0,0,0,0,0,0,0]
["1","7","EG","0.04","","7.1 Sanitärräume","Z.FB0060 keramische Fliesen/Platten",1,null,1,null,1,null,null,"",null,2.66,null,null,null,null,null,null,null,null,null,null,null,null,null,null,null,null,null,null,"1         3615       0007-  222EG   0000044 7.1","3615",2.66,"3xwö",3,3,null,null,null,null,null,null,null,null,null,null,null,null,null,null,null,null,null,null,"1","7",2.66,2.66,0,2.66,0,2.66,0,0,null,1,0,1,0,1,0,0,null,0,0,0,0,0,0,0]
["1","7","EG","0.05","","9.0 Verkehrsfläche","Z.FB0020 Estrich",null,null,1,null,null,null,null,"",null,null,null,3.54,null,null,null,null,null,null,null,null,null,null,null,null,null,null,null,null,"1         3615       0007-  222EG   0000055 9.0","3615",3.54,"1xwö",1,1,null,null,null,null,null,null,null,null,null,null,null,null,null,null,null,null,null,null,"1","7",3.54,0,0,3.54,0,0,0,0,null,0,0,1,0,0,0,0,null,0,0,0,0,0,0,0]
["1","10","EG","1","","2.0 Büroarbeit","Z.FB0010 Anstrich/Lack",null,null,1,null,null,null,null,"",null,null,null,12.32,null,null,null,null,null,null,null,null,null,null,null,null,null,null,null,null,"1         3615       0010-  222EG   000100  2.0","3615",12.32,"1xwö",1,1,null,null,null,null,null,null,null,null,null,null,null,null,null,null,null,null,null,null,"1","10",12.32,0,0,12.32,0,0,0,0,null,0,0,1,0,0,0,0,null,0,0,0,0,0,0,0]
["1","11","EG","2","","2.0 Büroarbeit","Z.FB0010 Anstrich/Lack",1,null,1,null,null,null,null,"",null,null,13.3,null,null,null,null,null,null,null,null,null,null,null,null,null,null,null,null,null,"1         3615       0011-  222EG   000200  2.0","3615",13.3,"2xwö",2,2,null,null,null,null,null,null,null,null,null,null,null,null,null,null,null,null,null,null,"1","11",13.3,13.3,0,13.3,0,0,0,0,null,1,0,1,0,0,0,0,null,0,0,0,0,0,0,0]
["1","11","EG","3","","7.1 Sanitärräume","Z.FB0010 Anstrich/Lack",1,null,1,null,1,null,null,"",null,1.5,null,null,null,null,null,null,null,null,null,null,null,null,null,null,null,null,null,null,"1         3615       0011-  222EG   000300  7.1","3615",1.5,"3xwö",3,3,null,null,null,null,null,null,null,null,null,null,null,null,null,null,null,null,null,null,"1","11",1.5,1.5,0,1.5,0,1.5,0,0,null,1,0,1,0,1,0,0,null,0,0,0,0,0,0,0]
["1","11","EG","4","","2.0 Büroarbeit","Z.FB0010 Anstrich/Lack",null,null,1,null,null,null,null,"",null,null,null,49,null,null,null,null,null,null,null,null,null,null,null,null,null,null,null,null,"1         3615       0011-  222EG   000400  2.0","3615",49,"1xwö",1,1,null,null,null,null,null,null,null,null,null,null,null,null,null,null,null,null,null,null,"1","11",49,0,0,49,0,0,0,0,null,0,0,1,0,0,0,0,null,0,0,0,0,0,0,0]
["1","27","EG","1","","2.0 Büroarbeit","Z.FB0020 Estrich",null,null,1,null,null,null,null,"",null,null,null,7.84,null,null,null,null,null,null,null,null,null,null,null,null,null,null,null,null,"1         3615       0027-  222EG   000100  2.0","3615",7.84,"1xwö",1,1,null,null,null,null,null,null,null,null,null,null,null,null,null,null,null,null,null,null,"1","27",7.84,0,0,7.84,0,0,0,0,null,0,0,1,0,0,0,0,null,0,0,0,0,0,0,0]
["1","28","EG","0.07","","9.0 Verkehrsfläche","Z.FB0220 Hartbelag",null,null,1,null,null,null,null,"",null,null,null,41.71,null,null,null,null,null,null,null,null,null,null,null,null,null,null,null,null,"1         3615       0028-  222EG   0000077 9.0","3615",41.71,"1xwö",1,1,null,null,null,null,null,null,null,null,null,null,null,null,null,null,null,null,null,null,"1","28",41.71,0,0,41.71,0,0,0,0,null,0,0,1,0,0,0,0,null,0,0,0,0,0,0,0]
["1","28","EG","0.08","","9.0 Verkehrsfläche","Z.FB0220 Hartbelag",null,null,1,null,null,null,null,"",null,null,null,57.25,null,null,null,null,null,null,null,null,null,null,null,null,null,null,null,null,"1         3615       0028-  222EG   0000088 9.0","3615",57.25,"1xwö",1,1,null,null,null,null,null,null,null,null,null,null,null,null,null,null,null,null,null,null,"1","28",57.25,0,0,57.25,0,0,0,0,null,0,0,1,0,0,0,0,null,0,0,0,0,0,0,0]
["1","28","EG","0.09","","5.0 Bildung, Unterricht und Kultur","Z.FB0220 Hartbelag",1,null,1,null,null,null,null,"",null,null,27.31,null,null,null,null,null,null,null,null,null,null,null,null,null,null,null,null,null,"1         3615       0028-  222EG   0000099 5.0","3615",27.31,"2xwö",2,2,null,null,null,null,null,null,null,null,null,null,null,null,null,null,null,null,null,null,"1","28",27.31,27.31,0,27.31,0,0,0,0,null,1,0,1,0,0,0,0,null,0,0,0,0,0,0,0]
["1","28","EG","0.10","","5.0 Bildung, Unterricht und Kultur","Z.FB0220 Hartbelag",null,null,1,null,null,null,null,"",null,null,null,12.89,null,null,null,null,null,null,null,null,null,null,null,null,null,null,null,null,"1         3615       0028-  222EG   000010105.0","3615",12.89,"1xwö",1,1,null,null,null,null,null,null,null,null,null,null,null,null,null,null,null,null,null,null,"1","28",12.89,0,0,12.89,0,0,0,0,null,0,0,1,0,0,0,0,null,0,0,0,0,0,0,0]
["1","28","EG","0.11","","5.0 Bildung, Unterricht und Kultur","Z.FB0220 Hartbelag",1,null,1,null,null,null,null,"",null,null,27.32,null,null,null,null,null,null,null,null,null,null,null,null,null,null,null,null,null,"1         3615       0028-  222EG   000011115.0","3615",27.32,"2xwö",2,2,null,null,null,null,null,null,null,null,null,null,null,null,null,null,null,null,null,null,"1","28",27.32,27.32,0,27.32,0,0,0,0,null,1,0,1,0,0,0,0,null,0,0,0,0,0,0,0]
["1","28","EG","0.12","","5.0 Bildung, Unterricht und Kultur","Z.FB0220 Hartbelag",null,null,1,null,null,null,null,"",null,null,null,12.89,null,null,null,null,null,null,null,null,null,null,null,null,null,null,null,null,"1         3615       0028-  222EG   000012125.0","3615",12.89,"1xwö",1,1,null,null,null,null,null,null,null,null,null,null,null,null,null,null,null,null,null,null,"1","28",12.89,0,0,12.89,0,0,0,0,null,0,0,1,0,0,0,0,null,0,0,0,0,0,0,0]
["1","28","EG","0.13","","5.0 Bildung, Unterricht und Kultur","Z.FB0220 Hartbelag",1,null,1,null,null,null,null,"",null,null,27.31,null,null,null,null,null,null,null,null,null,null,null,null,null,null,null,null,null,"1         3615       0028-  222EG   000013135.0","3615",27.31,"2xwö",2,2,null,null,null,null,null,null,null,null,null,null,null,null,null,null,null,null,null,null,"1","28",27.31,27.31,0,27.31,0,0,0,0,null,1,0,1,0,0,0,0,null,0,0,0,0,0,0,0]
["1","28","EG","0.14","","5.0 Bildung, Unterricht und Kultur","Z.FB0220 Hartbelag",null,null,1,null,null,null,null,"",null,null,null,12.89,null,null,null,null,null,null,null,null,null,null,null,null,null,null,null,null,"1         3615       0028-  222EG   000014145.0","3615",12.89,"1xwö",1,1,null,null,null,null,null,null,null,null,null,null,null,null,null,null,null,null,null,null,"1","28",12.89,0,0,12.89,0,0,0,0,null,0,0,1,0,0,0,0,null,0,0,0,0,0,0,0]
["1","28","EG","0.15","","5.0 Bildung, Unterricht und Kultur","Z.FB0220 Hartbelag",1,null,1,null,null,null,null,"",null,null,27.31,null,null,null,null,null,null,null,null,null,null,null,null,null,null,null,null,null,"1         3615       0028-  222EG   000015155.0","3615",27.31,"2xwö",2,2,null,null,null,null,null,null,null,null,null,null,null,null,null,null,null,null,null,null,"1","28",27.31,27.31,0,27.31,0,0,0,0,null,1,0,1,0,0,0,0,null,0,0,0,0,0,0,0]
["1","28","EG","0.16","","5.0 Bildung, Unterricht und Kultur","Z.FB0220 Hartbelag",null,null,1,null,null,null,null,"",null,null,null,12.89,null,null,null,null,null,null,null,null,null,null,null,null,null,null,null,null,"1         3615       0028-  222EG   000016165.0","3615",12.89,"1xwö",1,1,null,null,null,null,null,null,null,null,null,null,null,null,null,null,null,null,null,null,"1","28",12.89,0,0,12.89,0,0,0,0,null,0,0,1,0,0,0,0,null,0,0,0,0,0,0,0]
["1","28","EG","0.17","","5.0 Bildung, Unterricht und Kultur","Z.FB0220 Hartbelag",1,null,1,null,null,null,null,"",null,null,27.31,null,null,null,null,null,null,null,null,null,null,null,null,null,null,null,null,null,"1         3615       0028-  222EG   000017175.0","3615",27.31,"2xwö",2,2,null,null,null,null,null,null,null,null,null,null,null,null,null,null,null,null,null,null,"1","28",27.31,27.31,0,27.31,0,0,0,0,null,1,0,1,0,0,0,0,null,0,0,0,0,0,0,0]
["1","28","EG","0.18","","5.0 Bildung, Unterricht und Kultur","Z.FB0220 Hartbelag",null,null,1,null,null,null,null,"",null,null,null,12.89,null,null,null,null,null,null,null,null,null,null,null,null,null,null,null,null,"1         3615       0028-  222EG   000018185.0","3615",12.89,"1xwö",1,1,null,null,null,null,null,null,null,null,null,null,null,null,null,null,null,null,null,null,"1","28",12.89,0,0,12.89,0,0,0,0,null,0,0,1,0,0,0,0,null,0,0,0,0,0,0,0]
["1","28","EG","0.19","","5.0 Bildung, Unterricht und Kultur","Z.FB0220 Hartbelag",1,null,1,null,null,null,null,"",null,null,27.31,null,null,null,null,null,null,null,null,null,null,null,null,null,null,null,null,null,"1         3615       0028-  222EG   000019195.0","3615",27.31,"2xwö",2,2,null,null,null,null,null,null,null,null,null,null,null,null,null,null,null,null,null,null,"1","28",27.31,27.31,0,27.31,0,0,0,0,null,1,0,1,0,0,0,0,null,0,0,0,0,0,0,0]
["1","28","EG","0.20","","5.0 Bildung, Unterricht und Kultur","Z.FB0220 Hartbelag",null,null,1,null,null,null,null,"",null,null,null,12.89,null,null,null,null,null,null,null,null,null,null,null,null,null,null,null,null,"1         3615       0028-  222EG   000020205.0","3615",12.89,"1xwö",1,1,null,null,null,null,null,null,null,null,null,null,null,null,null,null,null,null,null,null,"1","28",12.89,0,0,12.89,0,0,0,0,null,0,0,1,0,0,0,0,null,0,0,0,0,0,0,0]
["1","28","EG","0.23","","7.1 Sanitärräume","Z.FB0060 keramische Fliesen/Platten",1,1,1,1,1,null,null,"",7.7,null,null,null,null,null,null,null,null,null,null,null,null,null,null,null,null,null,null,null,"1         3615       0028-  222EG   000023237.1","3615",7.7,"5xwö",5,5,null,null,null,null,null,null,null,null,null,null,null,null,null,null,null,null,null,null,"1","28",7.7,7.7,7.7,7.7,7.7,7.7,0,0,null,1,1,1,1,1,0,0,null,0,0,0,0,0,0,0]
["1","28","EG","0.25","","7.9 Sonstige Nutzung","Z.FB0060 keramische Fliesen/Platten",null,null,1,null,null,null,null,"",null,null,null,8.5299999999999994,null,null,null,null,null,null,null,null,null,null,null,null,null,null,null,null,"1         3615       0028-  222EG   000025257.9","3615",8.5299999999999994,"1xwö",1,1,null,null,null,null,null,null,null,null,null,null,null,null,null,null,null,null,null,null,"1","28",8.5299999999999994,0,0,8.5299999999999994,0,0,0,0,null,0,0,1,0,0,0,0,null,0,0,0,0,0,0,0]
["1","28","EG","0.26","","7.1 Sanitärräume","Z.FB0060 keramische Fliesen/Platten",1,1,1,1,1,null,null,"",3.76,null,null,null,null,null,null,null,null,null,null,null,null,null,null,null,null,null,null,null,"1         3615       0028-  222EG   000026267.1","3615",3.76,"5xwö",5,5,null,null,null,null,null,null,null,null,null,null,null,null,null,null,null,null,null,null,"1","28",3.76,3.76,3.76,3.76,3.76,3.76,0,0,null,1,1,1,1,1,0,0,null,0,0,0,0,0,0,0]
["1","28","EG","0.27","","7.1 Sanitärräume","Z.FB0060 keramische Fliesen/Platten",1,1,1,1,1,null,null,"",15.1,null,null,null,null,null,null,null,null,null,null,null,null,null,null,null,null,null,null,null,"1         3615       0028-  222EG   000027277.1","3615",15.1,"5xwö",5,5,null,null,null,null,null,null,null,null,null,null,null,null,null,null,null,null,null,null,"1","28",15.1,15.1,15.1,15.1,15.1,15.1,0,0,null,1,1,1,1,1,0,0,null,0,0,0,0,0,0,0]
["1","28","EG","0.28","","7.1 Sanitärräume","Z.FB0060 keramische Fliesen/Platten",1,1,1,1,1,null,null,"",4.87,null,null,null,null,null,null,null,null,null,null,null,null,null,null,null,null,null,null,null,"1         3615       0028-  222EG   000028287.1","3615",4.87,"5xwö",5,5,null,null,null,null,null,null,null,null,null,null,null,null,null,null,null,null,null,null,"1","28",4.87,4.87,4.87,4.87,4.87,4.87,0,0,null,1,1,1,1,1,0,0,null,0,0,0,0,0,0,0]
["1","30","EG","1","","2.0 Büroarbeit","Z.FB0020 Estrich",null,null,1,null,null,null,null,"",null,null,null,15,null,null,null,null,null,null,null,null,null,null,null,null,null,null,null,null,"1         3615       0030-  222EG   000100  2.0","3615",15,"1xwö",1,1,null,null,null,null,null,null,null,null,null,null,null,null,null,null,null,null,null,null,"1","30",15,0,0,15,0,0,0,0,null,0,0,1,0,0,0,0,null,0,0,0,0,0,0,0]
["1","31","EG","2","","2.0 Büroarbeit","Z.FB0020 Estrich",null,null,1,null,null,null,null,"",null,null,null,15,null,null,null,null,null,null,null,null,null,null,null,null,null,null,null,null,"1         3615       0031-  222EG   000200  2.0","3615",15,"1xwö",1,1,null,null,null,null,null,null,null,null,null,null,null,null,null,null,null,null,null,null,"1","31",15,0,0,15,0,0,0,0,null,0,0,1,0,0,0,0,null,0,0,0,0,0,0,0]
["1","34","EG","2","","7.1 Sanitärräume","Z.FB0220 Hartbelag",1,1,1,1,1,null,null,"",8.32,null,null,null,null,null,null,null,null,null,null,null,null,null,null,null,null,null,null,null,"1         3615       0034-  222EG   000200  7.1","3615",8.32,"5xwö",5,5,null,null,null,null,null,null,null,null,null,null,null,null,null,null,null,null,null,null,"1","34",8.32,8.32,8.32,8.32,8.32,8.32,0,0,null,1,1,1,1,1,0,0,null,0,0,0,0,0,0,0]
["1","34","EG","3","","7.1 Sanitärräume","Z.FB0220 Hartbelag",1,1,1,1,1,null,null,"",10.74,null,null,null,null,null,null,null,null,null,null,null,null,null,null,null,null,null,null,null,"1         3615       0034-  222EG   000300  7.1","3615",10.74,"5xwö",5,5,null,null,null,null,null,null,null,null,null,null,null,null,null,null,null,null,null,null,"1","34",10.74,10.74,10.74,10.74,10.74,10.74,0,0,null,1,1,1,1,1,0,0,null,0,0,0,0,0,0,0]
["1","34","EG","4","","7.1 Sanitärräume","Z.FB0220 Hartbelag",1,1,1,1,1,null,null,"",16.75,null,null,null,null,null,null,null,null,null,null,null,null,null,null,null,null,null,null,null,"1         3615       0034-  222EG   000400  7.1","3615",16.75,"5xwö",5,5,null,null,null,null,null,null,null,null,null,null,null,null,null,null,null,null,null,null,"1","34",16.75,16.75,16.75,16.75,16.75,16.75,0,0,null,1,1,1,1,1,0,0,null,0,0,0,0,0,0,0]
["1","34","EG","5","","7.1 Sanitärräume","Z.FB0220 Hartbelag",1,1,1,1,1,null,null,"",7.28,null,null,null,null,null,null,null,null,null,null,null,null,null,null,null,null,null,null,null,"1         3615       0034-  222EG   000500  7.1","3615",7.28,"5xwö",5,5,null,null,null,null,null,null,null,null,null,null,null,null,null,null,null,null,null,null,"1","34",7.28,7.28,7.28,7.28,7.28,7.28,0,0,null,1,1,1,1,1,0,0,null,0,0,0,0,0,0,0]
["1","35","EG","1","","7.1 Sanitärräume","Z.FB0220 Hartbelag",1,1,1,1,1,null,null,"",15,null,null,null,null,null,null,null,null,null,null,null,null,null,null,null,null,null,null,null,"1         3615       0035-  222EG   000100  7.1","3615",15,"5xwö",5,5,null,null,null,null,null,null,null,null,null,null,null,null,null,null,null,null,null,null,"1","35",15,15,15,15,15,15,0,0,null,1,1,1,1,1,0,0,null,0,0,0,0,0,0,0]
[null,null,null,null,null,null,null,null,null,null,null,null,null,null,null,null,null,null,null,null,null,null,null,null,null,null,null,null,null,null,null,null,null,null,null,"                     0000   ZZZZZ   000000  "]

{"sheet":"Fensterverzeichnis","index":1,"n_rows":118,"n_cols":61,"rows_kept":118,"cut":false,"hidden":false,"merged":[[0,0,0,8],[1,0,1,3],[2,0,2,3],[3,0,3,3],[4,0,4,3],[1,4,1,7],[2,4,2,7],[3,4,3,7],[4,4,4,7],[8,0,8,7],[9,0,9,7],[6,0,6,4],[7,0,7,4],[1,8,5,8],[5,0,5,3],[5,4,5,7]]}
["Fensterverzeichnis",null,null,null,null,null,null,null,null,null,null,null,null,null,null,null,null,null,null,null,null,null,null,null,null,null,null,null,null,null,null,null,null,null,null,null,null,null,null,null,null,null,null,null,null,null,null,null,null,null,null,"AbrBer","zu reinigende FFl-Summe","Fl-Summe"]
["BwDLZ",null,null,null,{"$f":"IF(Raumverzeichnis!E2=\"\",\"\",Raumverzeichnis!E2)","v":"Ingolstadt"},null,null,null,null,null,null,null,null,null,null,null,null,null,null,null,null,null,null,null,null,null,null,null,null,null,null,null,null,null,null,null,null,null,"Keine Datenübernahme möglich",null,null,null,null,null,null,null,null,null,null,null,null,"1",{"$f":"SUMIF(A13:A118,$AZ2,$BA13:$BA118)","v":230.71},{"$f":"SUMIF(A13:A118,$AZ2,$BB13:$BB118)","v":1292.6300000000001}]
["OM/Außenstelle",null,null,null,{"$f":"IF(Raumverzeichnis!E2=\"\",\"\",Raumverzeichnis!E3)","v":"Pionierübungsplatz L/w"},null,null,null,null,null,null,null,null,null,null,null,null,null,null,null,null,null,null,null,null,null,null,null,null,null,null,null,null,null,null,null,null,null,null,null,null,null,null,null,null,null,null,null,null,null,null,null,{"$f":"SUMIF(A13:A118,$AZ3,$BA13:$BA118)","v":0},{"$f":"SUMIF(A13:A118,$AZ3,$BB13:$BB118)","v":0}]
["Objektmanager/~in",null,null,null,{"$f":"IF(Raumverzeichnis!O3=\"\",\"\",Raumverzeichnis!O3)","v":"Achatz"},null,null,null,null,null,null,null,null,null,null,null,null,null,null,null,null,null,null,null,null,null,null,null,null,null,null,null,null,null,null,null,null,null,null,null,null,null,null,null,null,null,null,null,null,null,null,null,{"$f":"SUMIF(A13:A118,$AZ4,$BA13:$BA118)","v":0},{"$f":"SUMIF(A13:A118,$AZ4,$BB13:$BB118)","v":0}]
["AbrBer / Lg-Nummer / Lg-Bezeichnung / (Anz. Häuser)",null,null,null,{"$f":"IF(Raumverzeichnis!E4=\"\",\"\",Raumverzeichnis!E4)","v":"1         3615  (14)"},null,null,null,null,null,null,null,null,null,null,null,null,null,null,null,null,null,null,null,null,null,null,null,null,null,null,null,null,null,null,null,null,null,null,null,null,null,null,null,null,null,null,null,null,null,null,null,{"$f":"SUMIF(A13:A118,$AZ5,$BA13:$BA118)","v":0},{"$f":"SUMIF(A13:A118,$AZ5,$BB13:$BB118)","v":0}]
["Stand",null,null,null,{"$f":"IF(Raumverzeichnis!O2=\"\",\"\",Raumverzeichnis!O2)","v":"2026-01-13"},null,null,null,null,null,null,null,null,null,null,null,null,null,null,null,null,null,null,null,null,null,null,null,null,null,null,null,null,null,null,null,null,null,null,null,null,null,null,null,null,null,null,null,null,null,null,null,{"$f":"SUMIF(A13:A118,$AZ6,$BA13:$BA118)","v":0},{"$f":"SUMIF(A13:A118,$AZ6,$BB13:$BB118)","v":0}]
["Anzahl Räume mit durch Dritte zu reinigenden Fenstern",null,null,null,null,{"$f":"SUM($I$7:$I$7)","v":52},null,null,{"$f":"SUM(IF($H$13:$H$117=\"D\",IF(I$13:I$117>0,1,0)))","v":52}]
["m² durch Dritte zu reinigende einfache Fensterfläche",null,null,null,null,{"$f":"SUM($I$8:$I$8)","v":230.71},null,null,{"$f":"SUMIF($H$13:$H$117,\"=D\",$I$13:$I$117)","v":230.71}]
["Anzahl Räume mit Fenster nach Filter",null,null,null,null,null,null,null,{"$f":"SUBTOTAL(3,I$13:I$117)","v":105}]
["m² Fensterfläche der Räume nach Filter",null,null,null,null,null,null,null,{"$f":"SUBTOTAL(9,I$13:I$117)","v":1292.6300000000001}]
["AbrBer","Gebäude","Geschoss","Raumnummer","Raumbezeichnung","Nutzungsart Bezeichnung\nDIN 277","Fensterart","Rein.\ndurch","EG"]
[1,{"$f":"A12+1","v":2},3,4,5,6,7,8,9,null,null,null,null,null,null,null,null,null,null,null,null,null,null,null,null,null,null,null,null,null,null,null,null,null,null,"Vergleichs- und Sortierstring","LGNR/WE-NR"]
["1","1","EG","1A","","2.0 Büroarbeit","1-Einfachfenster","D",7.5,"D",null,null,null,null,null,null,null,null,null,null,null,null,null,null,null,null,null,null,null,null,null,null,null,null,null,"1         3615       0001-  222EG   000100A 2.0","3615",null,null,null,null,null,null,null,null,null,null,null,null,null,null,null,{"$f":"IF($H13=\"D\",BB13,\"\")","v":7.5},{"$f":"SUM($I13:$I13)","v":7.5},"222222EG",null,1,0,"A",null,"1########"]
["1","1","EG","1B","","2.0 Büroarbeit","1-Einfachfenster","D",7.5,"N",null,null,null,null,null,null,null,null,null,null,null,null,null,null,null,null,null,null,null,null,null,null,null,null,null,"1         3615       0001-  222EG   000100B 2.0","3615",null,null,null,null,null,null,null,null,null,null,null,null,null,null,null,7.5,7.5,"222222EG",null,1,0,"B",null,"1########"]
["1","1","EG","5A","","2.0 Büroarbeit","1-Einfachfenster","D",7.5,"V",null,null,null,null,null,null,null,null,null,null,null,null,null,null,null,null,null,null,null,null,null,null,null,null,null,"1         3615       0001-  222EG   000500A 2.0","3615",null,null,null,null,null,null,null,null,null,null,null,null,null,null,null,7.5,7.5,"222222EG",null,5,0,"A",null,"1########"]
["1","1","EG","löschen","","2.0 Büroarbeit","1-Einfachfenster","N",1,null,null,null,null,null,null,null,null,null,null,null,null,null,null,null,null,null,null,null,null,null,null,null,null,null,null,"1         3615       0001-  222EGlös000000  2.0","3615",null,null,null,null,null,null,null,null,null,null,null,null,null,null,null,"",1,"222222EG","löschen",null,null,null,null,"1########"]
["1","1","EG","Tor 1 und 2","","3.0 Produktion, Hand- und Maschinenarbeit, Forschung und Entwicklung","1-Einfachfenster","N",24.5,null,null,null,null,null,null,null,null,null,null,null,null,null,null,null,null,null,null,null,null,null,null,null,null,null,null,"1         3615       0001-  222EGTor000100un3.0","3615",null,null,null,null,null,null,null,null,null,null,null,null,null,null,null,"",24.5,"222222EG","Tor ",1,0,"und 2",null,"1########"]
["1","1","EG","Tor 3 und 4","","4.0 Lagern, Verteilen und Verkaufen","1-Einfachfenster","N",16,null,null,null,null,null,null,null,null,null,null,null,null,null,null,null,null,null,null,null,null,null,null,null,null,null,null,"1         3615       0001-  222EGTor000300un4.0","3615",null,null,null,null,null,null,null,null,null,null,null,null,null,null,null,"",16,"222222EG","Tor ",3,0,"und 4",null,"1########"]
["1","1","EG","Tor 5 und 6","","4.0 Lagern, Verteilen und Verkaufen","1-Einfachfenster","N",16,null,null,null,null,null,null,null,null,null,null,null,null,null,null,null,null,null,null,null,null,null,null,null,null,null,null,"1         3615       0001-  222EGTor000500un4.0","3615",null,null,null,null,null,null,null,null,null,null,null,null,null,null,null,"",16,"222222EG","Tor ",5,0,"und 6",null,"1########"]
["1","1","EG","Tor 7","","4.0 Lagern, Verteilen und Verkaufen","1-Einfachfenster","N",8,null,null,null,null,null,null,null,null,null,null,null,null,null,null,null,null,null,null,null,null,null,null,null,null,null,null,"1         3615       0001-  222EGTor000700  4.0","3615",null,null,null,null,null,null,null,null,null,null,null,null,null,null,null,"",8,"222222EG","Tor ",7,0,null,null,"1########"]
["1","1","EG","Tor 8","","4.0 Lagern, Verteilen und Verkaufen","1-Einfachfenster","N",8,null,null,null,null,null,null,null,null,null,null,null,null,null,null,null,null,null,null,null,null,null,null,null,null,null,null,"1         3615       0001-  222EGTor000800  4.0","3615",null,null,null,null,null,null,null,null,null,null,null,null,null,null,null,"",8,"222222EG","Tor ",8,0,null,null,"1########"]
["1","2","EG","01","","2.0 Büroarbeit","1-Einfachfenster","D",3,null,null,null,null,null,null,null,null,null,null,null,null,null,null,null,null,null,null,null,null,null,null,null,null,null,null,"1         3615       0002-  222EG   000100  2.0","3615",null,null,null,null,null,null,null,null,null,null,null,null,null,null,null,3,3,"222222EG",null,1,0,null,null,"2########"]
["1","2","EG","02","","9.0 Verkehrsfläche","1-Einfachfenster","D",0.5,null,null,null,null,null,null,null,null,null,null,null,null,null,null,null,null,null,null,null,null,null,null,null,null,null,null,"1         3615       0002-  222EG   000200  9.0","3615",null,null,null,null,null,null,null,null,null,null,null,null,null,null,null,0.5,0.5,"222222EG",null,2,0,null,null,"2########"]
["1","2","EG","04","","7.1 Sanitärräume","1-Einfachfenster","D",0.5,null,null,null,null,null,null,null,null,null,null,null,null,null,null,null,null,null,null,null,null,null,null,null,null,null,null,"1         3615       0002-  222EG   000400  7.1","3615",null,null,null,null,null,null,null,null,null,null,null,null,null,null,null,0.5,0.5,"222222EG",null,4,0,null,null,"2########"]
["1","2","EG","05","","7.1 Sanitärräume","1-Einfachfenster","D",0.5,null,null,null,null,null,null,null,null,null,null,null,null,null,null,null,null,null,null,null,null,null,null,null,null,null,null,"1         3615       0002-  222EG   000500  7.1","3615",null,null,null,null,null,null,null,null,null,null,null,null,null,null,null,0.5,0.5,"222222EG",null,5,0,null,null,"2########"]
["1","2","EG","06","","8.0 Technikfläche","1-Einfachfenster","N",0.5,null,null,null,null,null,null,null,null,null,null,null,null,null,null,null,null,null,null,null,null,null,null,null,null,null,null,"1         3615       0002-  222EG   000600  8.0","3615",null,null,null,null,null,null,null,null,null,null,null,null,null,null,null,"",0.5,"222222EG",null,6,0,null,null,"2########"]
["1","3","EG","1","","3.0 Produktion, Hand- und Maschinenarbeit, Forschung und Entwicklung","1-Einfachfenster","N",2.08,null,null,null,null,null,null,null,null,null,null,null,null,null,null,null,null,null,null,null,null,null,null,null,null,null,null,"1         3615       0003-  222EG   000100  3.0","3615",null,null,null,null,null,null,null,null,null,null,null,null,null,null,null,"",2.08,"222222EG",null,1,0,null,null,"3########"]
["1","3","EG","2","","1.0 Wohnen und Aufenthalt","1-Einfachfenster","N",1.56,null,null,null,null,null,null,null,null,null,null,null,null,null,null,null,null,null,null,null,null,null,null,null,null,null,null,"1         3615       0003-  222EG   000200  1.0","3615",null,null,null,null,null,null,null,null,null,null,null,null,null,null,null,"",1.56,"222222EG",null,2,0,null,null,"3########"]
["1","3","EG","3","","4.0 Lagern, Verteilen und Verkaufen","1-Einfachfenster","N",1.56,null,null,null,null,null,null,null,null,null,null,null,null,null,null,null,null,null,null,null,null,null,null,null,null,null,null,"1         3615       0003-  222EG   000300  4.0","3615",null,null,null,null,null,null,null,null,null,null,null,null,null,null,null,"",1.56,"222222EG",null,3,0,null,null,"3########"]
["1","3","EG","4","","3.0 Produktion, Hand- und Maschinenarbeit, Forschung und Entwicklung","1-Einfachfenster","N",75,null,null,null,null,null,null,null,null,null,null,null,null,null,null,null,null,null,null,null,null,null,null,null,null,null,null,"1         3615       0003-  222EG   000400  3.0","3615",null,null,null,null,null,null,null,null,null,null,null,null,null,null,null,"",75,"222222EG",null,4,0,null,null,"3########"]
["1","3","EG","5","","4.0 Lagern, Verteilen und Verkaufen","1-Einfachfenster","N",11.3,null,null,null,null,null,null,null,null,null,null,null,null,null,null,null,null,null,null,null,null,null,null,null,null,null,null,"1         3615       0003-  222EG   000500  4.0","3615",null,null,null,null,null,null,null,null,null,null,null,null,null,null,null,"",11.3,"222222EG",null,5,0,null,null,"3########"]
["1","3","EG","6","","4.0 Lagern, Verteilen und Verkaufen","1-Einfachfenster","N",51,null,null,null,null,null,null,null,null,null,null,null,null,null,null,null,null,null,null,null,null,null,null,null,null,null,null,"1         3615       0003-  222EG   000600  4.0","3615",null,null,null,null,null,null,null,null,null,null,null,null,null,null,null,"",51,"222222EG",null,6,0,null,null,"3########"]
["1","3","EG","7","","4.0 Lagern, Verteilen und Verkaufen","1-Einfachfenster","N",77.5,null,null,null,null,null,null,null,null,null,null,null,null,null,null,null,null,null,null,null,null,null,null,null,null,null,null,"1         3615       0003-  222EG   000700  4.0","3615",null,null,null,null,null,null,null,null,null,null,null,null,null,null,null,"",77.5,"222222EG",null,7,0,null,null,"3########"]
["1","3","EG","8","","4.0 Lagern, Verteilen und Verkaufen","1-Einfachfenster","N",152.5,null,null,null,null,null,null,null,null,null,null,null,null,null,null,null,null,null,null,null,null,null,null,null,null,null,null,"1         3615       0003-  222EG   000800  4.0","3615",null,null,null,null,null,null,null,null,null,null,null,null,null,null,null,"",152.5,"222222EG",null,8,0,null,null,"3########"]
["1","3","EG","9","","4.0 Lagern, Verteilen und Verkaufen","1-Einfachfenster","N",75,null,null,null,null,null,null,null,null,null,null,null,null,null,null,null,null,null,null,null,null,null,null,null,null,null,null,"1         3615       0003-  222EG   000900  4.0","3615",null,null,null,null,null,null,null,null,null,null,null,null,null,null,null,"",75,"222222EG",null,9,0,null,null,"3########"]
["1","3","EG","10","","4.0 Lagern, Verteilen und Verkaufen","1-Einfachfenster","N",150,null,null,null,null,null,null,null,null,null,null,null,null,null,null,null,null,null,null,null,null,null,null,null,null,null,null,"1         3615       0003-  222EG   001000  4.0","3615",null,null,null,null,null,null,null,null,null,null,null,null,null,null,null,"",150,"222222EG",null,10,0,null,null,"3########"]
["1","3","EG","11","","4.0 Lagern, Verteilen und Verkaufen","1-Einfachfenster","N",150,null,null,null,null,null,null,null,null,null,null,null,null,null,null,null,null,null,null,null,null,null,null,null,null,null,null,"1         3615       0003-  222EG   001100  4.0","3615",null,null,null,null,null,null,null,null,null,null,null,null,null,null,null,"",150,"222222EG",null,11,0,null,null,"3########"]
["1","3","EG","11A","","2.0 Büroarbeit","1-Einfachfenster","D",10,null,null,null,null,null,null,null,null,null,null,null,null,null,null,null,null,null,null,null,null,null,null,null,null,null,null,"1         3615       0003-  222EG   001100A 2.0","3615",null,null,null,null,null,null,null,null,null,null,null,null,null,null,null,10,10,"222222EG",null,11,0,"A",null,"3########"]
["1","4","EG","02","","2.0 Büroarbeit","1-Einfachfenster","D",25.65,null,null,null,null,null,null,null,null,null,null,null,null,null,null,null,null,null,null,null,null,null,null,null,null,null,null,"1         3615       0004-  222EG   000200  2.0","3615",null,null,null,null,null,null,null,null,null,null,null,null,null,null,null,25.65,25.65,"222222EG",null,2,0,null,null,"4########"]
["1","4","EG","03","","2.0 Büroarbeit","1-Einfachfenster","D",6.41,null,null,null,null,null,null,null,null,null,null,null,null,null,null,null,null,null,null,null,null,null,null,null,null,null,null,"1         3615       0004-  222EG   000300  2.0","3615",null,null,null,null,null,null,null,null,null,null,null,null,null,null,null,6.41,6.41,"222222EG",null,3,0,null,null,"4########"]
["1","4","EG","04 a","","2.0 Büroarbeit","1-Einfachfenster","D",4.3099999999999996,null,null,null,null,null,null,null,null,null,null,null,null,null,null,null,null,null,null,null,null,null,null,null,null,null,null,"1         3615       0004-  222EG   000400a 2.0","3615",null,null,null,null,null,null,null,null,null,null,null,null,null,null,null,4.3099999999999996,4.3099999999999996,"222222EG",null,4,0,"a",null,"4########"]
["1","4","EG","04 b","","2.0 Büroarbeit","1-Einfachfenster","D",6.41,null,null,null,null,null,null,null,null,null,null,null,null,null,null,null,null,null,null,null,null,null,null,null,null,null,null,"1         3615       0004-  222EG   000400b 2.0","3615",null,null,null,null,null,null,null,null,null,null,null,null,null,null,null,6.41,6.41,"222222EG",null,4,0,"b",null,"4########"]
["1","4","EG","05","","1.0 Wohnen und Aufenthalt","1-Einfachfenster","D",4.3099999999999996,null,null,null,null,null,null,null,null,null,null,null,null,null,null,null,null,null,null,null,null,null,null,null,null,null,null,"1         3615       0004-  222EG   000500  1.0","3615",null,null,null,null,null,null,null,null,null,null,null,null,null,null,null,4.3099999999999996,4.3099999999999996,"222222EG",null,5,0,null,null,"4########"]
["1","4","EG","06","","7.2 Umkleiden","1-Einfachfenster","D",2.16,null,null,null,null,null,null,null,null,null,null,null,null,null,null,null,null,null,null,null,null,null,null,null,null,null,null,"1         3615       0004-  222EG   000600  7.2","3615",null,null,null,null,null,null,null,null,null,null,null,null,null,null,null,2.16,2.16,"222222EG",null,6,0,null,null,"4########"]
["1","4","EG","07","","7.1 Sanitärräume","1-Einfachfenster","D",2.16,null,null,null,null,null,null,null,null,null,null,null,null,null,null,null,null,null,null,null,null,null,null,null,null,null,null,"1         3615       0004-  222EG   000700  7.1","3615",null,null,null,null,null,null,null,null,null,null,null,null,null,null,null,{"$f":"IF($H45=\"D\",BB45,\"\")","v":2.16},{"$f":"SUM($I45:$I45)","v":2.16},"222222EG",null,7,0,null,null,"4########"]
["1","4","EG","08","","7.1 Sanitärräume","1-Einfachfenster","D",2.16,null,null,null,null,null,null,null,null,null,null,null,null,null,null,null,null,null,null,null,null,null,null,null,null,null,null,"1         3615       0004-  222EG   000800  7.1","3615",null,null,null,null,null,null,null,null,null,null,null,null,null,null,null,2.16,2.16,"222222EG",null,8,0,null,null,"4########"]
["1","4","EG","11","","8.0 Technikfläche","1-Einfachfenster","N",4.3099999999999996,null,null,null,null,null,null,null,null,null,null,null,null,null,null,null,null,null,null,null,null,null,null,null,null,null,null,"1         3615       0004-  222EG   001100  8.0","3615",null,null,null,null,null,null,null,null,null,null,null,null,null,null,null,"",4.3099999999999996,"222222EG",null,11,0,null,null,"4########"]
["1","4","EG","12","","4.0 Lagern, Verteilen und Verkaufen","1-Einfachfenster","N",1.26,null,null,null,null,null,null,null,null,null,null,null,null,null,null,null,null,null,null,null,null,null,null,null,null,null,null,"1         3615       0004-  222EG   001200  4.0","3615",null,null,null,null,null,null,null,null,null,null,null,null,null,null,null,"",1.26,"222222EG",null,12,0,null,null,"4########"]
["1","4","EG","14","","2.0 Büroarbeit","1-Einfachfenster","D",4.32,null,null,null,null,null,null,null,null,null,null,null,null,null,null,null,null,null,null,null,null,null,null,null,null,null,null,"1         3615       0004-  222EG   001400  2.0","3615",null,null,null,null,null,null,null,null,null,null,null,null,null,null,null,4.32,4.32,"222222EG",null,14,0,null,null,"4########"]
["1","4","EG","15","","2.0 Büroarbeit","1-Einfachfenster","D",2.16,null,null,null,null,null,null,null,null,null,null,null,null,null,null,null,null,null,null,null,null,null,null,null,null,null,null,"1         3615       0004-  222EG   001500  2.0","3615",null,null,null,null,null,null,null,null,null,null,null,null,null,null,null,2.16,2.16,"222222EG",null,15,0,null,null,"4########"]
["1","4","EG","16","","7.2 Umkleiden","1-Einfachfenster","D",2.16,null,null,null,null,null,null,null,null,null,null,null,null,null,null,null,null,null,null,null,null,null,null,null,null,null,null,"1         3615       0004-  222EG   001600  7.2","3615",null,null,null,null,null,null,null,null,null,null,null,null,null,null,null,2.16,2.16,"222222EG",null,16,0,null,null,"4########"]
["1","4","EG","17","","3.8 Küchen","1-Einfachfenster","D",2.16,null,null,null,null,null,null,null,null,null,null,null,null,null,null,null,null,null,null,null,null,null,null,null,null,null,null,"1         3615       0004-  222EG   001700  3.8","3615",null,null,null,null,null,null,null,null,null,null,null,null,null,null,null,2.16,2.16,"222222EG",null,17,0,null,null,"4########"]
["1","4","EG","18","","2.0 Büroarbeit","1-Einfachfenster","D",12.83,null,null,null,null,null,null,null,null,null,null,null,null,null,null,null,null,null,null,null,null,null,null,null,null,null,null,"1         3615       0004-  222EG   001800  2.0","3615",null,null,null,null,null,null,null,null,null,null,null,null,null,null,null,12.83,12.83,"222222EG",null,18,0,null,null,"4########"]
["1","4","EG","19","","2.0 Büroarbeit","1-Einfachfenster","D",12.83,null,null,null,null,null,null,null,null,null,null,null,null,null,null,null,null,null,null,null,null,null,null,null,null,null,null,"1         3615       0004-  222EG   001900  2.0","3615",null,null,null,null,null,null,null,null,null,null,null,null,null,null,null,12.83,12.83,"222222EG",null,19,0,null,null,"4########"]
["1","4","EG","20","","2.0 Büroarbeit","1-Einfachfenster","D",6.41,null,null,null,null,null,null,null,null,null,null,null,null,null,null,null,null,null,null,null,null,null,null,null,null,null,null,"1         3615       0004-  222EG   002000  2.0","3615",null,null,null,null,null,null,null,null,null,null,null,null,null,null,null,6.41,6.41,"222222EG",null,20,0,null,null,"4########"]
["1","4","EG","21","","2.0 Büroarbeit","1-Einfachfenster","D",12.83,null,null,null,null,null,null,null,null,null,null,null,null,null,null,null,null,null,null,null,null,null,null,null,null,null,null,"1         3615       0004-  222EG   002100  2.0","3615",null,null,null,null,null,null,null,null,null,null,null,null,null,null,null,12.83,12.83,"222222EG",null,21,0,null,null,"4########"]
["1","5","EG","1","","4.0 Lagern, Verteilen und Verkaufen","1-Einfachfenster","N",4.8,null,null,null,null,null,null,null,null,null,null,null,null,null,null,null,null,null,null,null,null,null,null,null,null,null,null,"1         3615       0005-  222EG   000100  4.0","3615",null,null,null,null,null,null,null,null,null,null,null,null,null,null,null,"",4.8,"222222EG",null,1,0,null,null,"5########"]
["1","5","EG","2","","4.0 Lagern, Verteilen und Verkaufen","1-Einfachfenster","N",12,null,null,null,null,null,null,null,null,null,null,null,null,null,null,null,null,null,null,null,null,null,null,null,null,null,null,"1         3615       0005-  222EG   000200  4.0","3615",null,null,null,null,null,null,null,null,null,null,null,null,null,null,null,"",12,"222222EG",null,2,0,null,null,"5########"]
["1","5","EG","3","","3.0 Produktion, Hand- und Maschinenarbeit, Forschung und Entwicklung","1-Einfachfenster","N",24,null,null,null,null,null,null,null,null,null,null,null,null,null,null,null,null,null,null,null,null,null,null,null,null,null,null,"1         3615       0005-  222EG   000300  3.0","3615",null,null,null,null,null,null,null,null,null,null,null,null,null,null,null,"",24,"222222EG",null,3,0,null,null,"5########"]
["1","5","EG","4","","3.0 Produktion, Hand- und Maschinenarbeit, Forschung und Entwicklung","1-Einfachfenster","N",12,null,null,null,null,null,null,null,null,null,null,null,null,null,null,null,null,null,null,null,null,null,null,null,null,null,null,"1         3615       0005-  222EG   000400  3.0","3615",null,null,null,null,null,null,null,null,null,null,null,null,null,null,null,"",12,"222222EG",null,4,0,null,null,"5########"]
["1","5","EG","5","","8.0 Technikfläche","1-Einfachfenster","N",1.6,null,null,null,null,null,null,null,null,null,null,null,null,null,null,null,null,null,null,null,null,null,null,null,null,null,null,"1         3615       0005-  222EG   000500  8.0","3615",null,null,null,null,null,null,null,null,null,null,null,null,null,null,null,"",1.6,"222222EG",null,5,0,null,null,"5########"]
["1","5","EG","6","","3.8 Küchen","1-Einfachfenster","D",3.3,null,null,null,null,null,null,null,null,null,null,null,null,null,null,null,null,null,null,null,null,null,null,null,null,null,null,"1         3615       0005-  222EG   000600  3.8","3615",null,null,null,null,null,null,null,null,null,null,null,null,null,null,null,3.3,3.3,"222222EG",null,6,0,null,null,"5########"]
["1","5","EG","9","","1.0 Wohnen und Aufenthalt","1-Einfachfenster","D",4.8,null,null,null,null,null,null,null,null,null,null,null,null,null,null,null,null,null,null,null,null,null,null,null,null,null,null,"1         3615       0005-  222EG   000900  1.0","3615",null,null,null,null,null,null,null,null,null,null,null,null,null,null,null,4.8,4.8,"222222EG",null,9,0,null,null,"5########"]
["1","5","EG","10","","4.0 Lagern, Verteilen und Verkaufen","1-Einfachfenster","N",9.6,null,null,null,null,null,null,null,null,null,null,null,null,null,null,null,null,null,null,null,null,null,null,null,null,null,null,"1         3615       0005-  222EG   001000  4.0","3615",null,null,null,null,null,null,null,null,null,null,null,null,null,null,null,"",9.6,"222222EG",null,10,0,null,null,"5########"]
["1","5","EG","11","","4.0 Lagern, Verteilen und Verkaufen","1-Einfachfenster","N",9.6,null,null,null,null,null,null,null,null,null,null,null,null,null,null,null,null,null,null,null,null,null,null,null,null,null,null,"1         3615       0005-  222EG   001100  4.0","3615",null,null,null,null,null,null,null,null,null,null,null,null,null,null,null,"",9.6,"222222EG",null,11,0,null,null,"5########"]
["1","5","EG","12","","7.9 Sonstige Nutzung","1-Einfachfenster","N",2.4,null,null,null,null,null,null,null,null,null,null,null,null,null,null,null,null,null,null,null,null,null,null,null,null,null,null,"1         3615       0005-  222EG   001200  7.9","3615",null,null,null,null,null,null,null,null,null,null,null,null,null,null,null,"",2.4,"222222EG",null,12,0,null,null,"5########"]
["1","5","EG","15","","9.0 Verkehrsfläche","1-Einfachfenster","N",4.8,null,null,null,null,null,null,null,null,null,null,null,null,null,null,null,null,null,null,null,null,null,null,null,null,null,null,"1         3615       0005-  222EG   001500  9.0","3615",null,null,null,null,null,null,null,null,null,null,null,null,null,null,null,"",4.8,"222222EG",null,15,0,null,null,"5########"]
["1","6","EG","0.01","","2.0 Büroarbeit","1-Einfachfenster","N",1.5,null,null,null,null,null,null,null,null,null,null,null,null,null,null,null,null,null,null,null,null,null,null,null,null,null,null,"1         3615       0006-  222EG   0000011 2.0","3615",null,null,null,null,null,null,null,null,null,null,null,null,null,null,null,"",1.5,"222222EG",null,0,1,1,null,"6########"]
["1","6","EG","0.02","","2.0 Büroarbeit","1-Einfachfenster","N",2,null,null,null,null,null,null,null,null,null,null,null,null,null,null,null,null,null,null,null,null,null,null,null,null,null,null,"1         3615       0006-  222EG   0000022 2.0","3615",null,null,null,null,null,null,null,null,null,null,null,null,null,null,null,"",2,"222222EG",null,0,2,2,null,"6########"]
["1","6","EG","0.03","","7.9 Sonstige Nutzung","1-Einfachfenster","N",1.5,null,null,null,null,null,null,null,null,null,null,null,null,null,null,null,null,null,null,null,null,null,null,null,null,null,null,"1         3615       0006-  222EG   0000033 7.9","3615",null,null,null,null,null,null,null,null,null,null,null,null,null,null,null,"",1.5,"222222EG",null,0,3,3,null,"6########"]
["1","7","EG","0.01","","2.0 Büroarbeit","1-Einfachfenster","D",2.2000000000000002,null,null,null,null,null,null,null,null,null,null,null,null,null,null,null,null,null,null,null,null,null,null,null,null,null,null,"1         3615       0007-  222EG   0000011 2.0","3615",null,null,null,null,null,null,null,null,null,null,null,null,null,null,null,2.2000000000000002,2.2000000000000002,"222222EG",null,0,1,1,null,"7########"]
["1","7","EG","0.03","","7.1 Sanitärräume","1-Einfachfenster","D",0.25,null,null,null,null,null,null,null,null,null,null,null,null,null,null,null,null,null,null,null,null,null,null,null,null,null,null,"1         3615       0007-  222EG   0000033 7.1","3615",null,null,null,null,null,null,null,null,null,null,null,null,null,null,null,0.25,0.25,"222222EG",null,0,3,3,null,"7########"]
["1","7","EG","0.05","","9.0 Verkehrsfläche","1-Einfachfenster","D",0.4,null,null,null,null,null,null,null,null,null,null,null,null,null,null,null,null,null,null,null,null,null,null,null,null,null,null,"1         3615       0007-  222EG   0000055 9.0","3615",null,null,null,null,null,null,null,null,null,null,null,null,null,null,null,0.4,0.4,"222222EG",null,0,5,5,null,"7########"]
["1","10","EG","1","","2.0 Büroarbeit","1-Einfachfenster","D",3.09,null,null,null,null,null,null,null,null,null,null,null,null,null,null,null,null,null,null,null,null,null,null,null,null,null,null,"1         3615       0010-  222EG   000100  2.0","3615",null,null,null,null,null,null,null,null,null,null,null,null,null,null,null,3.09,3.09,"222222EG",null,1,0,null,null,"10#######"]
["1","10","EG","2","","8.0 Technikfläche","1-Einfachfenster","N",0.48,null,null,null,null,null,null,null,null,null,null,null,null,null,null,null,null,null,null,null,null,null,null,null,null,null,null,"1         3615       0010-  222EG   000200  8.0","3615",null,null,null,null,null,null,null,null,null,null,null,null,null,null,null,"",0.48,"222222EG",null,2,0,null,null,"10#######"]
["1","10","EG","3","","8.0 Technikfläche","1-Einfachfenster","N",0.48,null,null,null,null,null,null,null,null,null,null,null,null,null,null,null,null,null,null,null,null,null,null,null,null,null,null,"1         3615       0010-  222EG   000300  8.0","3615",null,null,null,null,null,null,null,null,null,null,null,null,null,null,null,"",0.48,"222222EG",null,3,0,null,null,"10#######"]
["1","10","EG","4","","3.0 Produktion, Hand- und Maschinenarbeit, Forschung und Entwicklung","1-Einfachfenster","N",4.53,null,null,null,null,null,null,null,null,null,null,null,null,null,null,null,null,null,null,null,null,null,null,null,null,null,null,"1         3615       0010-  222EG   000400  3.0","3615",null,null,null,null,null,null,null,null,null,null,null,null,null,null,null,{"$f":"IF($H77=\"D\",BB77,\"\")","v":""},{"$f":"SUM($I77:$I77)","v":4.53},"222222EG",null,4,0,null,null,"10#######"]
["1","11","EG","2","","2.0 Büroarbeit","1-Einfachfenster","D",0.64,null,null,null,null,null,null,null,null,null,null,null,null,null,null,null,null,null,null,null,null,null,null,null,null,null,null,"1         3615       0011-  222EG   000200  2.0","3615",null,null,null,null,null,null,null,null,null,null,null,null,null,null,null,0.64,0.64,"222222EG",null,2,0,null,null,"11#######"]
["1","11","EG","4","","2.0 Büroarbeit","1-Einfachfenster","D",12.19,null,null,null,null,null,null,null,null,null,null,null,null,null,null,null,null,null,null,null,null,null,null,null,null,null,null,"1         3615       0011-  222EG   000400  2.0","3615",null,null,null,null,null,null,null,null,null,null,null,null,null,null,null,12.19,12.19,"222222EG",null,4,0,null,null,"11#######"]
["1","13","EG","1A","","7.9 Sonstige Nutzung","1-Einfachfenster","N",14,null,null,null,null,null,null,null,null,null,null,null,null,null,null,null,null,null,null,null,null,null,null,null,null,null,null,"1         3615       0013-  222EG   000100A 7.9","3615",null,null,null,null,null,null,null,null,null,null,null,null,null,null,null,"",14,"222222EG",null,1,0,"A",null,"13#######"]
["1","13","EG","1B","","7.9 Sonstige Nutzung","1-Einfachfenster","N",14,null,null,null,null,null,null,null,null,null,null,null,null,null,null,null,null,null,null,null,null,null,null,null,null,null,null,"1         3615       0013-  222EG   000100B 7.9","3615",null,null,null,null,null,null,null,null,null,null,null,null,null,null,null,"",14,"222222EG",null,1,0,"B",null,"13#######"]
["1","13","EG","2","","7.9 Sonstige Nutzung","1-Einfachfenster","N",14,null,null,null,null,null,null,null,null,null,null,null,null,null,null,null,null,null,null,null,null,null,null,null,null,null,null,"1         3615       0013-  222EG   000200  7.9","3615",null,null,null,null,null,null,null,null,null,null,null,null,null,null," ","",14,"222222EG"," ",2,0," ",null,"13#######"]
["1","13","EG","3","","7.9 Sonstige Nutzung","1-Einfachfenster","N",7,null,null,null,null,null,null,null,null,null,null,null,null,null,null,null,null,null,null,null,null,null,null,null,null,null,null,"1         3615       0013-  222EG   000300  7.9","3615",null,null,null,null,null,null,null,null,null,null,null,null,null,null,null,"",7,"222222EG",null,3,0,null,null,"13#######"]
["1","13","EG","4","","7.9 Sonstige Nutzung","1-Einfachfenster","N",7,null,null,null,null,null,null,null,null,null,null,null,null,null,null,null,null,null,null,null,null,null,null,null,null,null,null,"1         3615       0013-  222EG   000400  7.9","3615",null,null,null,null,null,null,null,null,null,null,null,null,null,null,null,"",7,"222222EG",null,4,0,null,null,"13#######"]
["1","13","EG","5","","7.9 Sonstige Nutzung","1-Einfachfenster","N",7,null,null,null,null,null,null,null,null,null,null,null,null,null,null,null,null,null,null,null,null,null,null,null,null,null,null,"1         3615       0013-  222EG   000500  7.9","3615",null,null,null,null,null,null,null,null,null,null,null,null,null,null,null,"",7,"222222EG",null,5,0,null,null,"13#######"]
["1","13","EG","6","","7.9 Sonstige Nutzung","1-Einfachfenster","N",7,null,null,null,null,null,null,null,null,null,null,null,null,null,null,null,null,null,null,null,null,null,null,null,null,null,null,"1         3615       0013-  222EG   000600  7.9","3615",null,null,null,null,null,null,null,null,null,null,null,null,null,null,null,"",7,"222222EG",null,6,0,null,null,"13#######"]
["1","13","EG","7","","7.9 Sonstige Nutzung","1-Einfachfenster","N",14,null,null,null,null,null,null,null,null,null,null,null,null,null,null,null,null,null,null,null,null,null,null,null,null,null,null,"1         3615       0013-  222EG   000700  7.9","3615",null,null,null,null,null,null,null,null,null,null,null,null,null,null,null,"",14,"222222EG",null,7,0,null,null,"13#######"]
["1","27","EG","1","","2.0 Büroarbeit","1-Einfachfenster","D",0.81,null,null,null,null,null,null,null,null,null,null,null,null,null,null,null,null,null,null,null,null,null,null,null,null,null,null,"1         3615       0027-  222EG   000100  2.0","3615",null,null,null,null,null,null,null,null,null,null,null,null,null,null,null,0.81,0.81,"222222EG",null,1,0,null,null,"27#######"]
["1","28","EG","0.01","","5.0 Bildung, Unterricht und Kultur","1-Einfachfenster","N",9.06,null,null,null,null,null,null,null,null,null,null,null,null,null,null,null,null,null,null,null,null,null,null,null,null,null,null,"1         3615       0028-  222EG   0000011 5.0","3615",null,null,null,null,null,null,null,null,null,null,null,null,null,null,null,"",9.06,"222222EG",null,0,1,1,null,"28#######"]
["1","28","EG","0.02","","5.0 Bildung, Unterricht und Kultur","1-Einfachfenster","N",9.06,null,null,null,null,null,null,null,null,null,null,null,null,null,null,null,null,null,null,null,null,null,null,null,null,null,null,"1         3615       0028-  222EG   0000022 5.0","3615",null,null,null,null,null,null,null,null,null,null,null,null,null,null,null,"",9.06,"222222EG",null,0,2,2,null,"28#######"]
["1","28","EG","0.03","","5.0 Bildung, Unterricht und Kultur","1-Einfachfenster","N",9.06,null,null,null,null,null,null,null,null,null,null,null,null,null,null,null,null,null,null,null,null,null,null,null,null,null,null,"1         3615       0028-  222EG   0000033 5.0","3615",null,null,null,null,null,null,null,null,null,null,null,null,null,null,null,"",9.06,"222222EG",null,0,3,3,null,"28#######"]
["1","28","EG","0.04","","5.0 Bildung, Unterricht und Kultur","1-Einfachfenster","N",9.06,null,null,null,null,null,null,null,null,null,null,null,null,null,null,null,null,null,null,null,null,null,null,null,null,null,null,"1         3615       0028-  222EG   0000044 5.0","3615",null,null,null,null,null,null,null,null,null,null,null,null,null,null,null,"",9.06,"222222EG",null,0,4,4,null,"28#######"]
["1","28","EG","0.05","","5.0 Bildung, Unterricht und Kultur","1-Einfachfenster","N",9.06,null,null,null,null,null,null,null,null,null,null,null,null,null,null,null,null,null,null,null,null,null,null,null,null,null,null,"1         3615       0028-  222EG   0000055 5.0","3615",null,null,null,null,null,null,null,null,null,null,null,null,null,null,null,"",9.06,"222222EG",null,0,5,5,null,"28#######"]
["1","28","EG","0.06","","5.0 Bildung, Unterricht und Kultur","1-Einfachfenster","N",9.06,null,null,null,null,null,null,null,null,null,null,null,null,null,null,null,null,null,null,null,null,null,null,null,null,null,null,"1         3615       0028-  222EG   0000066 5.0","3615",null,null,null,null,null,null,null,null,null,null,null,null,null,null,null,"",9.06,"222222EG",null,0,6,6,null,"28#######"]
["1","28","EG","0.09","","5.0 Bildung, Unterricht und Kultur","1-Einfachfenster","D",6.21,null,null,null,null,null,null,null,null,null,null,null,null,null,null,null,null,null,null,null,null,null,null,null,null,null,null,"1         3615       0028-  222EG   0000099 5.0","3615",null,null,null,null,null,null,null,null,null,null,null,null,null,null,null,6.21,6.21,"222222EG",null,0,9,9,null,"28#######"]
["1","28","EG","0.10","","5.0 Bildung, Unterricht und Kultur","1-Einfachfenster","D",2.69,null,null,null,null,null,null,null,null,null,null,null,null,null,null,null,null,null,null,null,null,null,null,null,null,null,null,"1         3615       0028-  222EG   000010105.0","3615",null,null,null,null,null,null,null,null,null,null,null,null,null,null,null,2.69,2.69,"222222EG",null,0,10,10,null,"28#######"]
["1","28","EG","0.11","","5.0 Bildung, Unterricht und Kultur","1-Einfachfenster","D",6.21,null,null,null,null,null,null,null,null,null,null,null,null,null,null,null,null,null,null,null,null,null,null,null,null,null,null,"1         3615       0028-  222EG   000011115.0","3615",null,null,null,null,null,null,null,null,null,null,null,null,null,null,null,6.21,6.21,"222222EG",null,0,11,11,null,"28#######"]
["1","28","EG","0.12","","5.0 Bildung, Unterricht und Kultur","1-Einfachfenster","D",2.69,null,null,null,null,null,null,null,null,null,null,null,null,null,null,null,null,null,null,null,null,null,null,null,null,null,null,"1         3615       0028-  222EG   000012125.0","3615",null,null,null,null,null,null,null,null,null,null,null,null,null,null,null,2.69,2.69,"222222EG",null,0,12,12,null,"28#######"]
["1","28","EG","0.13","","5.0 Bildung, Unterricht und Kultur","1-Einfachfenster","D",6.21,null,null,null,null,null,null,null,null,null,null,null,null,null,null,null,null,null,null,null,null,null,null,null,null,null,null,"1         3615       0028-  222EG   000013135.0","3615",null,null,null,null,null,null,null,null,null,null,null,null,null,null,null,6.21,6.21,"222222EG",null,0,13,13,null,"28#######"]
["1","28","EG","0.14","","5.0 Bildung, Unterricht und Kultur","1-Einfachfenster","D",2.69,null,null,null,null,null,null,null,null,null,null,null,null,null,null,null,null,null,null,null,null,null,null,null,null,null,null,"1         3615       0028-  222EG   000014145.0","3615",null,null,null,null,null,null,null,null,null,null,null,null,null,null,null,2.69,2.69,"222222EG",null,0,14,14,null,"28#######"]
["1","28","EG","0.15","","5.0 Bildung, Unterricht und Kultur","1-Einfachfenster","D",6.21,null,null,null,null,null,null,null,null,null,null,null,null,null,null,null,null,null,null,null,null,null,null,null,null,null,null,"1         3615       0028-  222EG   000015155.0","3615",null,null,null,null,null,null,null,null,null,null,null,null,null,null,null,6.21,6.21,"222222EG",null,0,15,15,null,"28#######"]
["1","28","EG","0.16","","5.0 Bildung, Unterricht und Kultur","1-Einfachfenster","D",2.69,null,null,null,null,null,null,null,null,null,null,null,null,null,null,null,null,null,null,null,null,null,null,null,null,null,null,"1         3615       0028-  222EG   000016165.0","3615",null,null,null,null,null,null,null,null,null,null,null,null,null,null,null,2.69,2.69,"222222EG",null,0,16,16,null,"28#######"]
["1","28","EG","0.17","","5.0 Bildung, Unterricht und Kultur","1-Einfachfenster","D",6.21,null,null,null,null,null,null,null,null,null,null,null,null,null,null,null,null,null,null,null,null,null,null,null,null,null,null,"1         3615       0028-  222EG   000017175.0","3615",null,null,null,null,null,null,null,null,null,null,null,null,null,null,null,6.21,6.21,"222222EG",null,0,17,17,null,"28#######"]
["1","28","EG","0.18","","5.0 Bildung, Unterricht und Kultur","1-Einfachfenster","D",2.69,null,null,null,null,null,null,null,null,null,null,null,null,null,null,null,null,null,null,null,null,null,null,null,null,null,null,"1         3615       0028-  222EG   000018185.0","3615",null,null,null,null,null,null,null,null,null,null,null,null,null,null,null,2.69,2.69,"222222EG",null,0,18,18,null,"28#######"]
["1","28","EG","0.19","","5.0 Bildung, Unterricht und Kultur","1-Einfachfenster","D",6.21,null,null,null,null,null,null,null,null,null,null,null,null,null,null,null,null,null,null,null,null,null,null,null,null,null,null,"1         3615       0028-  222EG   000019195.0","3615",null,null,null,null,null,null,null,null,null,null,null,null,null,null,null,6.21,6.21,"222222EG",null,0,19,19,null,"28#######"]
["1","28","EG","0.20","","5.0 Bildung, Unterricht und Kultur","1-Einfachfenster","D",2.69,null,null,null,null,null,null,null,null,null,null,null,null,null,null,null,null,null,null,null,null,null,null,null,null,null,null,"1         3615       0028-  222EG   000020205.0","3615",null,null,null,null,null,null,null,null,null,null,null,null,null,null,null,2.69,2.69,"222222EG",null,0,20,20,null,"28#######"]
["1","30","EG","1","","2.0 Büroarbeit","1-Einfachfenster","D",0.6,null,null,null,null,null,null,null,null,null,null,null,null,null,null,null,null,null,null,null,null,null,null,null,null,null,null,"1         3615       0030-  222EG   000100  2.0","3615",null,null,null,null,null,null,null,null,null,null,null,null,null,null,null,0.6,0.6,"222222EG",null,1,0,null,null,"30#######"]
["1","31","EG","2","","2.0 Büroarbeit","1-Einfachfenster","D",0.6,null,null,null,null,null,null,null,null,null,null,null,null,null,null,null,null,null,null,null,null,null,null,null,null,null,null,"1         3615       0031-  222EG   000200  2.0","3615",null,null,null,null,null,null,null,null,null,null,null,null,null,null,null,0.6,0.6,"222222EG",null,2,0,null,null,"31#######"]
["1","32","EG","2","","2.0 Büroarbeit","1-Einfachfenster","N",1.3,null,null,null,null,null,null,null,null,null,null,null,null,null,null,null,null,null,null,null,null,null,null,null,null,null,null,"1         3615       0032-  222EG   000200  2.0","3615",null,null,null,null,null,null,null,null,null,null,null,null,null,null,null,{"$f":"IF($H109=\"D\",BB109,\"\")","v":""},{"$f":"SUM($I109:$I109)","v":1.3},"222222EG",null,2,0,null,null,"32#######"]
["1","32","EG","3","","2.0 Büroarbeit","1-Einfachfenster","N",1.3,null,null,null,null,null,null,null,null,null,null,null,null,null,null,null,null,null,null,null,null,null,null,null,null,null,null,"1         3615       0032-  222EG   000300  2.0","3615",null,null,null,null,null,null,null,null,null,null,null,null,null,null,null,"",1.3,"222222EG",null,3,0,null,null,"32#######"]
["1","33","EG","7","","2.0 Büroarbeit","1-Einfachfenster","N",1.3,null,null,null,null,null,null,null,null,null,null,null,null,null,null,null,null,null,null,null,null,null,null,null,null,null,null,"1         3615       0033-  222EG   000700  2.0","3615",null,null,null,null,null,null,null,null,null,null,null,null,null,null,null,"",1.3,"222222EG",null,7,0,null,null,"33#######"]
["1","33","EG","8","","2.0 Büroarbeit","1-Einfachfenster","N",1.3,null,null,null,null,null,null,null,null,null,null,null,null,null,null,null,null,null,null,null,null,null,null,null,null,null,null,"1         3615       0033-  222EG   000800  2.0","3615",null,null,null,null,null,null,null,null,null,null,null,null,null,null,null,"",1.3,"222222EG",null,8,0,null,null,"33#######"]
["1","34","EG","2","","7.1 Sanitärräume","1-Einfachfenster","D",0.24,null,null,null,null,null,null,null,null,null,null,null,null,null,null,null,null,null,null,null,null,null,null,null,null,null,null,"1         3615       0034-  222EG   000200  7.1","3615",null,null,null,null,null,null,null,null,null,null,null,null,null,null,null,0.24,0.24,"222222EG",null,2,0,null,null,"34#######"]
["1","34","EG","3","","7.1 Sanitärräume","1-Einfachfenster","D",0.96,null,null,null,null,null,null,null,null,null,null,null,null,null,null,null,null,null,null,null,null,null,null,null,null,null,null,"1         3615       0034-  222EG   000300  7.1","3615",null,null,null,null,null,null,null,null,null,null,null,null,null,null,null,0.96,0.96,"222222EG",null,3,0,null,null,"34#######"]
["1","34","EG","4","","7.1 Sanitärräume","1-Einfachfenster","D",0.48,null,null,null,null,null,null,null,null,null,null,null,null,null,null,null,null,null,null,null,null,null,null,null,null,null,null,"1         3615       0034-  222EG   000400  7.1","3615",null,null,null,null,null,null,null,null,null,null,null,null,null,null,null,0.48,0.48,"222222EG",null,4,0,null,null,"34#######"]
["1","34","EG","5","","7.1 Sanitärräume","1-Einfachfenster","D",0.24,null,null,null,null,null,null,null,null,null,null,null,null,null,null,null,null,null,null,null,null,null,null,null,null,null,null,"1         3615       0034-  222EG   000500  7.1","3615",null,null,null,null,null,null,null,null,null,null,null,null,null,null,null,0.24,0.24,"222222EG",null,5,0,null,null,"34#######"]
["1","35","EG","1","","7.1 Sanitärräume","1-Einfachfenster","D",0.24,null,null,null,null,null,null,null,null,null,null,null,null,null,null,null,null,null,null,null,null,null,null,null,null,null,null,"1         3615       0035-  222EG   000100  7.1","3615",null,null,null,null,null,null,null,null,null,null,null,null,null,null,null,0.24,0.24,"222222EG",null,1,0,null,null,"35#######"]
[null,null,null,null,null,null,null,null,null,null,null,null,null,null,null,null,null,null,null,null,null,null,null,null,null,null,null,null,null,null,null,null,null,null,null,"                     0000   ZZZZZ   000000  ",null,null,null,null,null,null,null,null,null,null,null,null,null,null,null,null,null,null,"ZZZZZZZZZZZZ"]

{"sheet":"Fehler-Datensätze","index":2,"n_rows":4,"n_cols":22,"rows_kept":4,"cut":false,"hidden":false,"merged":[]}
["LgNr","Liegenschaftsbezeichnung","Haus-Nummer","Gebäudebezeichnung","Geschoss","Raum-Nummer","Raumbezeichnung","Nutzungsart\nDIN 277","Bezeichnung\nDIN 277","Fußbodenart\nDIN 277","Bezeichnung\nDIN 277","ReinH","Rein.\ndurch","FbFl","FFl","FArt","FArt_TXT"]
["3615",null,7,null,"EG","0.03",null,"7.1","Sanitärräume","Z.FB0060","keramische Fliesen/Platten","3xwö","D",4.42,0.25,1,"Einfachfenster, unabhängig von der Verglasungsart (Standardfenster)",null,null,null,null,"3615-0007"]
["3615",null,7,null,"EG","0.04",null,"7.1","Sanitärräume","Z.FB0060","keramische Fliesen/Platten","3xwö","D",2.66,0,0,"Kein Fenster",null,null,null,null,"3615-0007"]
["3615",null,11,null,"EG","3",null,"7.1","Sanitärräume","Z.FB0010","Anstrich/Lack","3xwö","D",1.5,0,0,"Kein Fenster",null,null,null,null,"3615-0011"]